Body Name,Body,Service Division Label,Service Division Code,Organisational Unit,Expenditure Category,Expenditure Code,CIPFA detailed expediture type,CIPFA detailed expediture code,Narrative,Date,Transaction number,Net Amount,Capital and Revenue,Supplier Name,Supplier ID,,
Chorley Borough Council,http://statistics.data.gov.uk/id/local-authority/30UE,Democratic Represent and  Mgnt,1007,Policy & Governance,Exhibitions & Special Events,40158,Miscellaneous Expenses,5034,Delivery of re-enactment at Astley Hall.,26/05/2017,0121454,400.00,Revenue,47th Regiment of Foot,76673,,
Chorley Borough Council,http://statistics.data.gov.uk/id/local-authority/30UE,Central Support Services,1009,Early Intervention,Training Course Fees,17010,Indirect Employee Expenses,5002,6 x Local Authority 12 month online training subscriptions at 125+VAT each Details proposed users to follow using online form,17/05/2017,0121247,750.00,Revenue,ABC Food Law,76727,,
Chorley Borough Council,http://statistics.data.gov.uk/id/local-authority/30UE,Unapportionable Central OHeads,1009,Customer & Digital,Consultants` Fees,40077,Services,5027,Council Tax Reduction Consultancy Support for the 18 19 scheme.,31/05/2017,0121529,500.00,Revenue,ACS Ltd,56512,,
Chorley Borough Council,http://statistics.data.gov.uk/id/local-authority/30UE,Business Support,1095,Business Development & Growth,Miscellaneous Expenses,40200,Miscellaneous Expenses,5034,AV Equipment hire / Technician support,17/05/2017,0120362,"2,662.00",Revenue,Active Audio Visual,21379,,
Chorley Borough Council,http://statistics.data.gov.uk/id/local-authority/30UE,Democratic Represent and  Mgnt,1007,Early Intervention,External Contractor - Trust or Charity,50008,Private Contractors,5042,AN Management fee April 2017 (unadjusted for 2017 RPIX),12/05/2017,0120936,"31,722.41",Revenue,Active Nation UK Ltd,17144,,
Chorley Borough Council,http://statistics.data.gov.uk/id/local-authority/30UE,Unapportionable Central OHeads,1009,Business Development & Growth,General Repairs - Reactive,20004,Repairs Maintenance & Alts,5005,Blanket Order for period May/June 2017,05/05/2017,0120762,314.00,Revenue,ADT Fire & Security,16645,,
Chorley Borough Council,http://statistics.data.gov.uk/id/local-authority/30UE,Unapportionable Central OHeads,1009,Business Development & Growth,Burglar Alarms & Security Systems,20075,Fixtures and Fittings,5010,Bengal St - supply of key fobs and programming,12/05/2017,0120834,384.00,Revenue,ADT Fire & Security,16645,,
Chorley Borough Council,http://statistics.data.gov.uk/id/local-authority/30UE,Unapportionable Central OHeads,1009,Policy & Governance,Burglar Alarms & Security Systems,20075,Fixtures and Fittings,5010,"Invoice no 35228714-10 Line Charge for the period 01-04-17 to 31-03-18 Rental, maintenance and monitoring of the intruder alarm",12/05/2017,0121001,"4,325.56",Revenue,ADT Fire & Security,16645,,
Chorley Borough Council,http://statistics.data.gov.uk/id/local-authority/30UE,Unapportionable Central OHeads,1009,Policy & Governance,Burglar Alarms & Security Systems,20075,Fixtures and Fittings,5010,"Invoice no 35228713-10 Line charge for the period 01-04-17 to 31-03-18 Rental, maintenance and monitoring of the intruder alarm",12/05/2017,0121002,"4,896.51",Revenue,ADT Fire & Security,16645,,
Chorley Borough Council,http://statistics.data.gov.uk/id/local-authority/30UE,Service Management & Support,1009,Customer & Digital,Vehicle Maintenance,30045,Direct Transport Costs,5016,Supply parts as per quotation number 20135884/21.04.2017 to be delivered to Bengal St depot PR7 1SA,03/05/2017,0120732,616.12,Revenue,Aebi Schmidt UK Ltd,17287,,
Chorley Borough Council,http://statistics.data.gov.uk/id/local-authority/30UE,Service Management & Support,1009,Customer & Digital,Vehicle Maintenance,30045,Direct Transport Costs,5016,1062871-5 Alternator Belt Tensioner,05/05/2017,0120826,203.28,Revenue,Aebi Schmidt UK Ltd,17287,,
Chorley Borough Council,http://statistics.data.gov.uk/id/local-authority/30UE,Service Management & Support,1009,Customer & Digital,Vehicle Maintenance,30045,Direct Transport Costs,5016,1158844-5 Door Console Rubber Gators,05/05/2017,0120826,94.20,Revenue,Aebi Schmidt UK Ltd,17287,,
Chorley Borough Council,http://statistics.data.gov.uk/id/local-authority/30UE,Service Management & Support,1009,Customer & Digital,Vehicle Maintenance,30045,Direct Transport Costs,5016,Post & Packing Charge,05/05/2017,0120826,15.00,Revenue,Aebi Schmidt UK Ltd,17287,,
Chorley Borough Council,http://statistics.data.gov.uk/id/local-authority/30UE,Service Management & Support,1009,Customer & Digital,Vehicle Maintenance,30045,Direct Transport Costs,5016,Side Skid 12-15090052,24/05/2017,0121389,521.67,Revenue,Aebi Schmidt UK Ltd,17287,,
Chorley Borough Council,http://statistics.data.gov.uk/id/local-authority/30UE,Service Management & Support,1009,Customer & Digital,Vehicle Maintenance,30045,Direct Transport Costs,5016,Suction Tube 17036435,24/05/2017,0121389,151.59,Revenue,Aebi Schmidt UK Ltd,17287,,
Chorley Borough Council,http://statistics.data.gov.uk/id/local-authority/30UE,Service Management & Support,1009,Customer & Digital,Vehicle Maintenance,30045,Direct Transport Costs,5016,Board 4 Switches 1120066-6,24/05/2017,0121389,158.75,Revenue,Aebi Schmidt UK Ltd,17287,,
Chorley Borough Council,http://statistics.data.gov.uk/id/local-authority/30UE,Service Management & Support,1009,Customer & Digital,Vehicle Maintenance,30045,Direct Transport Costs,5016,Post & Packing,24/05/2017,0121389,26.55,Revenue,Aebi Schmidt UK Ltd,17287,,
Chorley Borough Council,http://statistics.data.gov.uk/id/local-authority/30UE,Community Development,1097,Policy & Governance,Core Funding Grants,40133,Grants and Subscriptions,5031,Contract extension of one month,10/05/2017,0120987,833.00,Revenue,Age UK,21252,,
Chorley Borough Council,http://statistics.data.gov.uk/id/local-authority/30UE,Central Support Services,1009,Early Intervention,Children's Activities,40188,Miscellaneous Expenses,5034,Hire of Facilities for Easter Holidays Monday 3rd April to Thursday 13th April booked NAME REDACTED Get up and Go activities,26/05/2017,0121494,820.13,Revenue,Albany Academy,20693,,
Chorley Borough Council,http://statistics.data.gov.uk/id/local-authority/30UE,Unapportionable Central OHeads,1009,Policy & Governance,Refreshments,40036,Catering,5024,Stock code: BCFT0026 Hot Chocolate sachet QTY 2 boxes,10/05/2017,0120808,34.68,Revenue,allianceonline,59490,,
Chorley Borough Council,http://statistics.data.gov.uk/id/local-authority/30UE,Unapportionable Central OHeads,1009,Policy & Governance,Refreshments,40036,Catering,5024,Stock code: BCFT0024 Fairtrade Colombian 32.82 each QTY 4 boxes,10/05/2017,0120808,139.16,Revenue,allianceonline,59490,,
Chorley Borough Council,http://statistics.data.gov.uk/id/local-authority/30UE,Unapportionable Central OHeads,1009,Policy & Governance,Refreshments,40036,Catering,5024,Stock code: BCFT0027 Fairtrade Tagged Teabags 22.26 each QTY 5 boxes,10/05/2017,0120808,112.00,Revenue,allianceonline,59490,,
Chorley Borough Council,http://statistics.data.gov.uk/id/local-authority/30UE,Unapportionable Central OHeads,1009,Policy & Governance,Refreshments,40036,Catering,5024,Stock code: BCFT0022 Fairtrade White Sugar Sticks 16.44 QTY 2 boxes,10/05/2017,0120808,34.04,Revenue,allianceonline,59490,,
Chorley Borough Council,http://statistics.data.gov.uk/id/local-authority/30UE,Unapportionable Central OHeads,1009,Policy & Governance,Refreshments,40036,Catering,5024,"Stock code: BLTA0019 Size: 1.9L Lever Airpot	23.99 QTY 1",10/05/2017,0120808,25.43,Revenue,allianceonline,59490,,
Chorley Borough Council,http://statistics.data.gov.uk/id/local-authority/30UE,Unapportionable Central OHeads,1009,Customer & Digital,Bank Charges,40151,Miscellaneous Expenses,5034,cash transactions,12/05/2017,0120985,"1,863.28",Revenue,Allpay Net Ltd,17242,,
Chorley Borough Council,http://statistics.data.gov.uk/id/local-authority/30UE,Development Control,1091,Policy & Governance,Car Leasing Payment,14100,Direct Employee Expenses,5001,NAME REDACTED,12/05/2017,0120709,"1,005.93",Revenue,Alphabet (Uk) Fleet Management Ltd,16651,,
Chorley Borough Council,http://statistics.data.gov.uk/id/local-authority/30UE,Unapportionable Central OHeads,1009,Policy & Governance,Car Leasing Payment,14100,Direct Employee Expenses,5001,NAME REDACTED,12/05/2017,0121107,"2,197.18",Revenue,Alphabet (Uk) Fleet Management Ltd,16651,,
Chorley Borough Council,http://statistics.data.gov.uk/id/local-authority/30UE,Unapportionable Central OHeads,1009,Policy & Governance,Car Leasing Payment,14100,Direct Employee Expenses,5001,Car Lease,12/05/2017,0121107,199.63,Revenue,Alphabet (Uk) Fleet Management Ltd,16651,,
Chorley Borough Council,http://statistics.data.gov.uk/id/local-authority/30UE,Democratic Represent and  Mgnt,1007,Policy & Governance,Car Leasing Payment,14100,Direct Employee Expenses,5001,Mayor,12/05/2017,0121107,"4,630.15",Revenue,Alphabet (Uk) Fleet Management Ltd,16651,,
Chorley Borough Council,http://statistics.data.gov.uk/id/local-authority/30UE,Democratic Represent and  Mgnt,1007,Policy & Governance,Car Leasing Payment,14100,Direct Employee Expenses,5001,Car Lease,12/05/2017,0121107,418.17,Revenue,Alphabet (Uk) Fleet Management Ltd,16651,,
Chorley Borough Council,http://statistics.data.gov.uk/id/local-authority/30UE,Central Support Services,1009,Customer & Digital,Professional Fees,40063,Services,5027,Botany Bay Mintel report on outlet villages,10/05/2017,0120934,"2,500.00",Revenue,NAME REDACTED,76491,,
Chorley Borough Council,http://statistics.data.gov.uk/id/local-authority/30UE,Unapportionable Central OHeads,1009,Chief Executive,Miscellaneous Expenses,40200,Miscellaneous Expenses,5034,Event cancellation insurance Chorley Grand Prix 14th April 2017,17/05/2017,0121248,313.50,Revenue,Aon UK Limited Accounts Division,76559,,
Chorley Borough Council,http://statistics.data.gov.uk/id/local-authority/30UE,Democratic Represent and  Mgnt,1007,Customer & Digital,Supplies-Grounds Maintenance,40025,"Equipment, Furniture & Materia",5023,"Supply tractor, rotovator and grading bar to prepare areas for wild flower seeding",12/05/2017,0120847,885.00,Revenue,AP Broome Landscapes,67257,,
Chorley Borough Council,http://statistics.data.gov.uk/id/local-authority/30UE,Elections,1012,Policy & Governance,Rent/Hire Of Premises,20017,Premises Rents,5007,room hire for polling staion on 4 May 2017 - LCC election room hire for polling station on 8 June 2017 - Parliamentary,17/05/2017,0121262,600.00,Revenue,APCMC Ltd,16350,,
Chorley Borough Council,http://statistics.data.gov.uk/id/local-authority/30UE,Service Management & Support,1009,Customer & Digital,External Contractor,40198,Miscellaneous Expenses,5034,Repairs to damaged bus shelter as on invoice 017115,03/05/2017,0120780,320.00,Revenue,Ark Welding Ltd,18154,,
Chorley Borough Council,http://statistics.data.gov.uk/id/local-authority/30UE,Economic Development,1096,Policy & Governance,Car Leasing Payment,14100,Direct Employee Expenses,5001,Quote: 2880898 Hyundai Ioniq 1.6 GDi Hybrid Premium SE 5dr DCT Hatchback Automatic Petrol/Electric Hybrid Pearl- grey 17``,26/05/2017,0121338,"2,329.32",Revenue,Arnold Clark Finance Ltd,20685,,
Chorley Borough Council,http://statistics.data.gov.uk/id/local-authority/30UE,Economic Development,1096,Policy & Governance,Car Leasing Payment,14100,Direct Employee Expenses,5001,Car Lease,26/05/2017,0121338,207.50,Revenue,Arnold Clark Finance Ltd,20685,,
Chorley Borough Council,http://statistics.data.gov.uk/id/local-authority/30UE,Central Support Services,1009,Policy & Governance,Car Leasing Payment,14100,Direct Employee Expenses,5001,NAME REDACTED,26/05/2017,0121385,"3,151.32",Revenue,Arnold Clark Finance Ltd,20685,,
Chorley Borough Council,http://statistics.data.gov.uk/id/local-authority/30UE,Central Support Services,1009,Policy & Governance,Car Leasing Payment,14100,Direct Employee Expenses,5001,Car Lease,26/05/2017,0121385,270.95,Revenue,Arnold Clark Finance Ltd,20685,,
Chorley Borough Council,http://statistics.data.gov.uk/id/local-authority/30UE,Central Support Services,1009,Policy & Governance,Car Leasing Payment,14100,Direct Employee Expenses,5001,NAME REDACTED,26/05/2017,0121386,"1,903.56",Revenue,Arnold Clark Finance Ltd,20685,,
Chorley Borough Council,http://statistics.data.gov.uk/id/local-authority/30UE,Central Support Services,1009,Policy & Governance,Car Leasing Payment,14100,Direct Employee Expenses,5001,Car Lease,26/05/2017,0121386,153.13,Revenue,Arnold Clark Finance Ltd,20685,,
Chorley Borough Council,http://statistics.data.gov.uk/id/local-authority/30UE,Central Support Services,1009,Customer & Digital,Consultants` Fees,40077,Services,5027,Work as per quote ACGW2008592 to install data points throughout Union Street Offices,12/05/2017,0120918,"11,500.00",Revenue,Audit Comms Ltd,76656,,
Chorley Borough Council,http://statistics.data.gov.uk/id/local-authority/30UE,Service Management & Support,1009,Customer & Digital,Registered Plant - Maintenance,40247,"Equipment, Furniture & Materia",5023,Supply parts as on advice note number 187214 collected by Chorley Council,05/05/2017,0120809,475.39,Revenue,Balmers Garden Machinery,17075,,
Chorley Borough Council,http://statistics.data.gov.uk/id/local-authority/30UE,Service Management & Support,1009,Customer & Digital,Registered Plant - Maintenance,40247,"Equipment, Furniture & Materia",5023,Supply parts as on advice note number 187214/2 collected by Chorley Council,05/05/2017,0120809,793.03,Revenue,Balmers Garden Machinery,17075,,
Chorley Borough Council,http://statistics.data.gov.uk/id/local-authority/30UE,Corporate Management,1008,Policy & Governance,Bank Charges,40151,Miscellaneous Expenses,5034,Bank Charges,26/05/2017,0120383,291.39,Revenue,Barclaycard Merchant Services,61601,,
Chorley Borough Council,http://statistics.data.gov.uk/id/local-authority/30UE,Corporate Management,1008,Policy & Governance,Bank Charges,40151,Miscellaneous Expenses,5034,Bank Charges,26/05/2017,0120383,26.00,Revenue,Barclaycard Merchant Services,61601,,
Chorley Borough Council,http://statistics.data.gov.uk/id/local-authority/30UE,Corporate Management,1008,Policy & Governance,Bank Charges,40151,Miscellaneous Expenses,5034,Bank Charges,26/05/2017,0120412,486.70,Revenue,Barclaycard Merchant Services,61601,,
Chorley Borough Council,http://statistics.data.gov.uk/id/local-authority/30UE,Corporate Management,1008,Policy & Governance,Bank Charges,40151,Miscellaneous Expenses,5034,Bank Charges,26/05/2017,0120413,"2,971.48",Revenue,Barclaycard Merchant Services,61601,,
Chorley Borough Council,http://statistics.data.gov.uk/id/local-authority/30UE,Corporate Management,1008,Policy & Governance,Bank Charges,40151,Miscellaneous Expenses,5034,Bank Charges,26/05/2017,0120414,981.68,Revenue,Barclaycard Merchant Services,61601,,
Chorley Borough Council,http://statistics.data.gov.uk/id/local-authority/30UE,Corporate Management,1008,Policy & Governance,Bank Charges,40151,Miscellaneous Expenses,5034,Bank Charges,26/05/2017,0121102,"1,148.43",Revenue,Barclaycard Merchant Services,61601,,
Chorley Borough Council,http://statistics.data.gov.uk/id/local-authority/30UE,Corporate Management,1008,Policy & Governance,Bank Charges,40151,Miscellaneous Expenses,5034,Bank Charges,26/05/2017,0121104,276.03,Revenue,Barclaycard Merchant Services,61601,,
Chorley Borough Council,http://statistics.data.gov.uk/id/local-authority/30UE,Corporate Management,1008,Policy & Governance,Bank Charges,40151,Miscellaneous Expenses,5034,Bank Charges,26/05/2017,0121412,705.12,Revenue,Barclaycard Merchant Services,61601,,
Chorley Borough Council,http://statistics.data.gov.uk/id/local-authority/30UE,Precepts and Collection Fund,Precept,Policy & Governance,NNDR Income,02003,Precepts & Collection Fund,Precept,chargebacks,26/05/2017,0121412,"9,000.00",Revenue,Barclaycard Merchant Services,61601,,
Chorley Borough Council,http://statistics.data.gov.uk/id/local-authority/30UE,Unapportionable Central OHeads,1009,Policy & Governance,Miscellaneous Expenses,40200,Miscellaneous Expenses,5034,Summer event Adverts,31/05/2017,0121495,450.00,Revenue,Bauer Active Ltd,50574,,
Chorley Borough Council,http://statistics.data.gov.uk/id/local-authority/30UE,Capital,Capital,Business Development & Growth,Main Contractor,03007,Capital Expenditure,Capital,"Overlay and re-roof of Units 13,14 & 15 Chorley North Industrial Estate.",10/05/2017,0120301,"34,009.34",Capital,BBR Roofing Ltd,76407,,
Chorley Borough Council,http://statistics.data.gov.uk/id/local-authority/30UE,Business Support,1095,Business Development & Growth,Grants To Other Organisations,40127,Grants and Subscriptions,5031,subsidy 3,17/05/2017,0121064,908.50,Revenue,Ben Hall - Anytime Fitness Chorley,76500,,
Chorley Borough Council,http://statistics.data.gov.uk/id/local-authority/30UE,Central Support Services,1009,Policy & Governance,External Contractor,40198,Miscellaneous Expenses,5034,Provide payroll service for the period July 17 - MAR 18,31/05/2017,0121511,"6,689.06",Revenue,Blackpool Borough Council,16518,,
Chorley Borough Council,http://statistics.data.gov.uk/id/local-authority/30UE,Democratic Represent and  Mgnt,1007,Early Intervention,Professional Fees,40063,Services,5027,"Work for Buckshaw Village, 25.4hrs @ 45 per hour for JA = 1143 and 4HRS @ 50 per hour for SCW = 200 - Total = !343",12/05/2017,0120897,"1,343.00",Revenue,Borough Of Pendle,17946,,
Chorley Borough Council,http://statistics.data.gov.uk/id/local-authority/30UE,Capital,Capital,Customer & Digital,Surveyors Fees,03021,Capital Expenditure,Capital,Additional design and supervision fees for Bolton Road highway scheme,03/05/2017,0120015,648.00,Capital,Borough of Pendle (Engineering and Design Services,54929,,
Chorley Borough Council,http://statistics.data.gov.uk/id/local-authority/30UE,Corporate Management,1008,Policy & Governance,Publicity - Advertising,40157,Miscellaneous Expenses,5034,Punch and Judy show at market walk 6/4/17,05/05/2017,0120872,350.00,Revenue,Brian Gore,18370,,
Chorley Borough Council,http://statistics.data.gov.uk/id/local-authority/30UE,Community Development,1097,Business Development & Growth,Gas,20014,Energy Costs,5006,accounting,03/05/2017,0120791,60.32,Revenue,British Gas Business,22242,,
Chorley Borough Council,http://statistics.data.gov.uk/id/local-authority/30UE,Democratic Represent and  Mgnt,1007,Business Development & Growth,Gas,20014,Energy Costs,5006,astley cottage,03/05/2017,0120791,88.27,Revenue,British Gas Business,22242,,
Chorley Borough Council,http://statistics.data.gov.uk/id/local-authority/30UE,Democratic Represent and  Mgnt,1007,Business Development & Growth,Gas,20014,Energy Costs,5006,astley hall,03/05/2017,0120791,"1,263.18",Revenue,British Gas Business,22242,,
Chorley Borough Council,http://statistics.data.gov.uk/id/local-authority/30UE,Open Spaces,1038,Business Development & Growth,Gas,20014,Energy Costs,5006,coach house,26/05/2017,0121483,355.88,Revenue,British Gas Business,22242,,
Chorley Borough Council,http://statistics.data.gov.uk/id/local-authority/30UE,Community Development,1097,Business Development & Growth,Gas,20014,Energy Costs,5006,accounting,26/05/2017,0121483,94.66,Revenue,British Gas Business,22242,,
Chorley Borough Council,http://statistics.data.gov.uk/id/local-authority/30UE,Unapportionable Central OHeads,1009,Business Development & Growth,Gas,20014,Energy Costs,5006,bengal sttreet,26/05/2017,0121483,180.96,Revenue,British Gas Business,22242,,
Chorley Borough Council,http://statistics.data.gov.uk/id/local-authority/30UE,Democratic Represent and  Mgnt,1007,Business Development & Growth,Gas,20014,Energy Costs,5006,astley cottage,26/05/2017,0121483,88.27,Revenue,British Gas Business,22242,,
Chorley Borough Council,http://statistics.data.gov.uk/id/local-authority/30UE,Democratic Represent and  Mgnt,1007,Business Development & Growth,Gas,20014,Energy Costs,5006,clayton brook,26/05/2017,0121483,167.34,Revenue,British Gas Business,22242,,
Chorley Borough Council,http://statistics.data.gov.uk/id/local-authority/30UE,Democratic Represent and  Mgnt,1007,Business Development & Growth,Gas,20014,Energy Costs,5006,astley vill,26/05/2017,0121483,182.87,Revenue,British Gas Business,22242,,
Chorley Borough Council,http://statistics.data.gov.uk/id/local-authority/30UE,Democratic Represent and  Mgnt,1007,Business Development & Growth,Gas,20014,Energy Costs,5006,astyley hall farmhouse,26/05/2017,0121483,146.31,Revenue,British Gas Business,22242,,
Chorley Borough Council,http://statistics.data.gov.uk/id/local-authority/30UE,Democratic Represent and  Mgnt,1007,Business Development & Growth,Gas,20014,Energy Costs,5006,eaves green,26/05/2017,0121483,177.97,Revenue,British Gas Business,22242,,
Chorley Borough Council,http://statistics.data.gov.uk/id/local-authority/30UE,Unapportionable Central OHeads,1009,Business Development & Growth,Gas,20014,Energy Costs,5006,union street,26/05/2017,0121483,"1,001.69",Revenue,British Gas Business,22242,,
Chorley Borough Council,http://statistics.data.gov.uk/id/local-authority/30UE,Democratic Represent and  Mgnt,1007,Business Development & Growth,Gas,20014,Energy Costs,5006,astley hall,26/05/2017,0121483,"1,263.18",Revenue,British Gas Business,22242,,
Chorley Borough Council,http://statistics.data.gov.uk/id/local-authority/30UE,Unapportionable Central OHeads,1009,Business Development & Growth,Gas,20014,Energy Costs,5006,town hall,26/05/2017,0121483,945.53,Revenue,British Gas Business,22242,,
Chorley Borough Council,http://statistics.data.gov.uk/id/local-authority/30UE,Central Support Services,1009,Customer & Digital,Telephones - Rentals,40083,Communication and Computing,5028,recurring,24/05/2017,0121384,"3,475.49",Revenue,British Telecommunications Plc,17131,,
Chorley Borough Council,http://statistics.data.gov.uk/id/local-authority/30UE,Central Support Services,1009,Customer & Digital,Telephones - Calls,40084,Communication and Computing,5028,usage,24/05/2017,0121384,148.28,Revenue,British Telecommunications Plc,17131,,
Chorley Borough Council,http://statistics.data.gov.uk/id/local-authority/30UE,Central Support Services,1009,Customer & Digital,Telephones - Other,40085,Communication and Computing,5028,one off,24/05/2017,0121384,277.00,Revenue,British Telecommunications Plc,17131,,
Chorley Borough Council,http://statistics.data.gov.uk/id/local-authority/30UE,Service Management & Support,1009,Customer & Digital,External Contractor,40198,Miscellaneous Expenses,5034,Carryout jetting probing and camera investigations at Astley Park and Harpers Lane as requested,05/05/2017,0120831,390.00,Revenue,C J Lyon,16579,,
Chorley Borough Council,http://statistics.data.gov.uk/id/local-authority/30UE,Service Management & Support,1009,Customer & Digital,External Contractor,40198,Miscellaneous Expenses,5034,Clearing of trash screen and jet line Higher Meadow at price agreed 65 per hour 2hr every 3 months,10/05/2017,0120896,130.00,Revenue,C J Lyon,16579,,
Chorley Borough Council,http://statistics.data.gov.uk/id/local-authority/30UE,Service Management & Support,1009,Customer & Digital,External Contractor,40198,Miscellaneous Expenses,5034,Clearing of trash screen and jet line Rowan Croft at price agreed 65 per hour 2hr every 3 months,10/05/2017,0120896,130.00,Revenue,C J Lyon,16579,,
Chorley Borough Council,http://statistics.data.gov.uk/id/local-authority/30UE,Service Management & Support,1009,Customer & Digital,External Contractor,40198,Miscellaneous Expenses,5034,Carryout jetting and camera inspection at Harpers Lane bowling green as requested,19/05/2017,0121258,260.00,Revenue,C J Lyon,16579,,
Chorley Borough Council,http://statistics.data.gov.uk/id/local-authority/30UE,Service Management & Support,1009,Customer & Digital,Vehicle Maintenance,30045,Direct Transport Costs,5016,Carryout repairs to faulty ram on Schmidt Swingo AE14AXX as on Pro-Forma invoice number W55885,17/05/2017,0121134,868.30,Revenue,C P Davidson & Sons Ltd,21093,,
Chorley Borough Council,http://statistics.data.gov.uk/id/local-authority/30UE,Unapportionable Central OHeads,1009,Customer & Digital,Emergency Call Out System,40096,Communication and Computing,5028,out of hours,10/05/2017,0120977,694.56,Revenue,CallCare Ltd,20257,,
Chorley Borough Council,http://statistics.data.gov.uk/id/local-authority/30UE,Service Management & Support,1009,Customer & Digital,Gas,20014,Energy Costs,5006,propane,19/05/2017,0121307,"1,153.83",Revenue,Calor Gas Limited,22104,,
Chorley Borough Council,http://statistics.data.gov.uk/id/local-authority/30UE,Unapportionable Central OHeads,1009,Policy & Governance,Refuse Collection,20037,Cleaning and Domestic Supplies,5012,"Provision of all services to Council sites Fragrances, mats, medical waste, vending machines April 17 to March 18",10/05/2017,0120483,"1,730.43",Revenue,Cannon Hygiene Limited,18158,,
Chorley Borough Council,http://statistics.data.gov.uk/id/local-authority/30UE,Housing Benefit Administration,1077,Customer & Digital,Computer Software-Additional,40102,Communication and Computing,5028,"Invoice number 6003542288. 1,500. Housing Benefit software changes for 2 child restriction.",03/05/2017,0120799,"1,250.00",Revenue,Capita Business Services Ltd,17151,,
Chorley Borough Council,http://statistics.data.gov.uk/id/local-authority/30UE,Housing Benefit Administration,1077,Customer & Digital,Computer Software-Additional,40102,Communication and Computing,5028,"Academy Remote support annual charge 15,000.",24/05/2017,0121208,"15,000.00",Revenue,Capita Business Services Ltd,17151,,
Chorley Borough Council,http://statistics.data.gov.uk/id/local-authority/30UE,Housing Benefit Administration,1077,Customer & Digital,Computer Software-Additional,40102,Communication and Computing,5028,"Cost of IT work completed for DEP LADS programme.  7,081.65.",31/05/2017,0121528,"7,081.65",Revenue,Capita Business Services Ltd,17151,,
Chorley Borough Council,http://statistics.data.gov.uk/id/local-authority/30UE,Central Support Services,1009,Early Intervention,Children's Activities,40188,Miscellaneous Expenses,5034,"Transport for Reach Up & Go - Swimming, Space, Knowsley, Bowling.",12/05/2017,0121037,285.00,Revenue,Central Lancs Dial-A-Ride Ltd,16617,,
Chorley Borough Council,http://statistics.data.gov.uk/id/local-authority/30UE,Corporate Management,1008,Policy & Governance,Legal Fees,40171,Miscellaneous Expenses,5034,solicitor costs,05/05/2017,0120871,"1,974.70",Revenue,Chorley Autocare Limited,76713,,
Chorley Borough Council,http://statistics.data.gov.uk/id/local-authority/30UE,Corporate Management,1008,Early Intervention,Taxi Testing & Vehicle Safety Report,40234,Services,5027,taxi testing,12/05/2017,0120967,136.80,Revenue,Chorley Autocare Ltd,17110,,
Chorley Borough Council,http://statistics.data.gov.uk/id/local-authority/30UE,Corporate Management,1008,Early Intervention,Taxi Testing & Vehicle Safety Report,40234,Services,5027,mot,12/05/2017,0120967,877.60,Revenue,Chorley Autocare Ltd,17110,,
Chorley Borough Council,http://statistics.data.gov.uk/id/local-authority/30UE,Democratic Represent and  Mgnt,1007,Chief Executive,Exhibitions,40176,Miscellaneous Expenses,5034,plants,26/05/2017,0121485,1.88,Revenue,Chorley BC Petty Cash,16301,,
Chorley Borough Council,http://statistics.data.gov.uk/id/local-authority/30UE,Democratic Represent and  Mgnt,1007,Chief Executive,Exhibitions,40176,Miscellaneous Expenses,5034,herbs,26/05/2017,0121485,7.50,Revenue,Chorley BC Petty Cash,16301,,
Chorley Borough Council,http://statistics.data.gov.uk/id/local-authority/30UE,Democratic Represent and  Mgnt,1007,Chief Executive,Exhibitions,40176,Miscellaneous Expenses,5034,pots,26/05/2017,0121485,6.66,Revenue,Chorley BC Petty Cash,16301,,
Chorley Borough Council,http://statistics.data.gov.uk/id/local-authority/30UE,Democratic Represent and  Mgnt,1007,Chief Executive,Exhibitions,40176,Miscellaneous Expenses,5034,book,26/05/2017,0121485,12.99,Revenue,Chorley BC Petty Cash,16301,,
Chorley Borough Council,http://statistics.data.gov.uk/id/local-authority/30UE,Democratic Represent and  Mgnt,1007,Chief Executive,Exhibitions,40176,Miscellaneous Expenses,5034,ant killer,26/05/2017,0121485,1.60,Revenue,Chorley BC Petty Cash,16301,,
Chorley Borough Council,http://statistics.data.gov.uk/id/local-authority/30UE,Democratic Represent and  Mgnt,1007,Chief Executive,Exhibitions,40176,Miscellaneous Expenses,5034,planter,26/05/2017,0121485,2.48,Revenue,Chorley BC Petty Cash,16301,,
Chorley Borough Council,http://statistics.data.gov.uk/id/local-authority/30UE,Democratic Represent and  Mgnt,1007,Chief Executive,Exhibitions,40176,Miscellaneous Expenses,5034,linen,26/05/2017,0121485,8.42,Revenue,Chorley BC Petty Cash,16301,,
Chorley Borough Council,http://statistics.data.gov.uk/id/local-authority/30UE,Democratic Represent and  Mgnt,1007,Chief Executive,Exhibitions,40176,Miscellaneous Expenses,5034,hangers,26/05/2017,0121485,2.50,Revenue,Chorley BC Petty Cash,16301,,
Chorley Borough Council,http://statistics.data.gov.uk/id/local-authority/30UE,Parking Services,1066,Chief Executive,Miscellaneous Expenses,40200,Miscellaneous Expenses,5034,parking tickets,26/05/2017,0121485,2.00,Revenue,Chorley BC Petty Cash,16301,,
Chorley Borough Council,http://statistics.data.gov.uk/id/local-authority/30UE,Economic Development,1096,Chief Executive,Miscellaneous Expenses,40200,Miscellaneous Expenses,5034,drill bits,26/05/2017,0121485,2.25,Revenue,Chorley BC Petty Cash,16301,,
Chorley Borough Council,http://statistics.data.gov.uk/id/local-authority/30UE,Central Support Services,1009,Chief Executive,Miscellaneous Expenses,40200,Miscellaneous Expenses,5034,refreshments,26/05/2017,0121485,5.68,Revenue,Chorley BC Petty Cash,16301,,
Chorley Borough Council,http://statistics.data.gov.uk/id/local-authority/30UE,Democratic Represent and  Mgnt,1007,Chief Executive,Mayoral Hospitality,40123,Expenses,5030,raffle tickets,26/05/2017,0121485,4.98,Revenue,Chorley BC Petty Cash,16301,,
Chorley Borough Council,http://statistics.data.gov.uk/id/local-authority/30UE,Unapportionable Central OHeads,1009,Chief Executive,Refreshments,40036,Catering,5024,milk and sugar,26/05/2017,0121485,1.93,Revenue,Chorley BC Petty Cash,16301,,
Chorley Borough Council,http://statistics.data.gov.uk/id/local-authority/30UE,Democratic Represent and  Mgnt,1007,Chief Executive,Use Of Transport - Mayoral Car,30015,Transport Recharges,5017,car wash,26/05/2017,0121485,5.00,Revenue,Chorley BC Petty Cash,16301,,
Chorley Borough Council,http://statistics.data.gov.uk/id/local-authority/30UE,Unapportionable Central OHeads,1009,Chief Executive,Refreshments,40036,Catering,5024,milk,26/05/2017,0121485,2.00,Revenue,Chorley BC Petty Cash,16301,,
Chorley Borough Council,http://statistics.data.gov.uk/id/local-authority/30UE,Unapportionable Central OHeads,1009,Chief Executive,Exhibitions & Special Events,40158,Miscellaneous Expenses,5034,pen,26/05/2017,0121485,5.83,Revenue,Chorley BC Petty Cash,16301,,
Chorley Borough Council,http://statistics.data.gov.uk/id/local-authority/30UE,Unapportionable Central OHeads,1009,Chief Executive,Exhibitions & Special Events,40158,Miscellaneous Expenses,5034,food and drink,26/05/2017,0121485,10.44,Revenue,Chorley BC Petty Cash,16301,,
Chorley Borough Council,http://statistics.data.gov.uk/id/local-authority/30UE,Unapportionable Central OHeads,1009,Chief Executive,Exhibitions & Special Events,40158,Miscellaneous Expenses,5034,cable ties,26/05/2017,0121485,5.20,Revenue,Chorley BC Petty Cash,16301,,
Chorley Borough Council,http://statistics.data.gov.uk/id/local-authority/30UE,Corporate Management,1008,Chief Executive,Grant Of Right Of Burial Fees,60077,Customer & Client Receipts,5064,death cert,26/05/2017,0121485,4.00,Revenue,Chorley BC Petty Cash,16301,,
Chorley Borough Council,http://statistics.data.gov.uk/id/local-authority/30UE,Economic Development,1096,Chief Executive,Miscellaneous Expenses,40200,Miscellaneous Expenses,5034,keys,26/05/2017,0121485,9.17,Revenue,Chorley BC Petty Cash,16301,,
Chorley Borough Council,http://statistics.data.gov.uk/id/local-authority/30UE,Democratic Represent and  Mgnt,1007,Chief Executive,Tools & Equipment - Purchase,40003,"Equipment, Furniture & Materia",5023,lamp,26/05/2017,0121485,16.65,Revenue,Chorley BC Petty Cash,16301,,
Chorley Borough Council,http://statistics.data.gov.uk/id/local-authority/30UE,Democratic Represent and  Mgnt,1007,Chief Executive,Staff General Travel Expenses,30030,Public Transport,5019,car parking,26/05/2017,0121485,11.00,Revenue,Chorley BC Petty Cash,16301,,
Chorley Borough Council,http://statistics.data.gov.uk/id/local-authority/30UE,Unapportionable Central OHeads,1009,Chief Executive,Postages,40082,Communication and Computing,5028,postage,26/05/2017,0121485,5.60,Revenue,Chorley BC Petty Cash,16301,,
Chorley Borough Council,http://statistics.data.gov.uk/id/local-authority/30UE,Democratic Represent and  Mgnt,1007,Chief Executive,Use Of Transport - Mayoral Car,30015,Transport Recharges,5017,car wash,26/05/2017,0121485,5.00,Revenue,Chorley BC Petty Cash,16301,,
Chorley Borough Council,http://statistics.data.gov.uk/id/local-authority/30UE,Unapportionable Central OHeads,1009,Chief Executive,Tools & Equipment - Purchase,40003,"Equipment, Furniture & Materia",5023,table dressings,26/05/2017,0121485,5.94,Revenue,Chorley BC Petty Cash,16301,,
Chorley Borough Council,http://statistics.data.gov.uk/id/local-authority/30UE,Unapportionable Central OHeads,1009,Chief Executive,Tools & Equipment - Purchase,40003,"Equipment, Furniture & Materia",5023,ear protectors,26/05/2017,0121485,3.33,Revenue,Chorley BC Petty Cash,16301,,
Chorley Borough Council,http://statistics.data.gov.uk/id/local-authority/30UE,Unapportionable Central OHeads,1009,Chief Executive,Refreshments,40036,Catering,5024,milk and juice,26/05/2017,0121485,9.95,Revenue,Chorley BC Petty Cash,16301,,
Chorley Borough Council,http://statistics.data.gov.uk/id/local-authority/30UE,Democratic Represent and  Mgnt,1007,Chief Executive,Use Of Transport - Mayoral Car,30015,Transport Recharges,5017,car wash,26/05/2017,0121485,5.00,Revenue,Chorley BC Petty Cash,16301,,
Chorley Borough Council,http://statistics.data.gov.uk/id/local-authority/30UE,Corporate Management,1008,Chief Executive,Rent/Hire Of Premises,20017,Premises Rents,5007,refreshments,26/05/2017,0121485,16.63,Revenue,Chorley BC Petty Cash,16301,,
Chorley Borough Council,http://statistics.data.gov.uk/id/local-authority/30UE,Elections,1012,Chief Executive,Tools & Equipment - Purchase,40003,"Equipment, Furniture & Materia",5023,sacks,26/05/2017,0121485,3.32,Revenue,Chorley BC Petty Cash,16301,,
Chorley Borough Council,http://statistics.data.gov.uk/id/local-authority/30UE,Unapportionable Central OHeads,1009,Chief Executive,Uniforms,40039,"Clothing, Uniforms and Laundry",5025,shirt,26/05/2017,0121485,10.00,Revenue,Chorley BC Petty Cash,16301,,
Chorley Borough Council,http://statistics.data.gov.uk/id/local-authority/30UE,Democratic Represent and  Mgnt,1007,Chief Executive,Use Of Transport - Mayoral Car,30015,Transport Recharges,5017,car wash,26/05/2017,0121485,5.00,Revenue,Chorley BC Petty Cash,16301,,
Chorley Borough Council,http://statistics.data.gov.uk/id/local-authority/30UE,Democratic Represent and  Mgnt,1007,Chief Executive,Mayoral Hospitality,40123,Expenses,5030,raffle tickets,26/05/2017,0121485,6.65,Revenue,Chorley BC Petty Cash,16301,,
Chorley Borough Council,http://statistics.data.gov.uk/id/local-authority/30UE,Democratic Represent and  Mgnt,1007,Chief Executive,Mayoral Hospitality,40123,Expenses,5030,cakes and biscuits,26/05/2017,0121485,6.70,Revenue,Chorley BC Petty Cash,16301,,
Chorley Borough Council,http://statistics.data.gov.uk/id/local-authority/30UE,Democratic Represent and  Mgnt,1007,Chief Executive,Tools & Equipment - Purchase,40003,"Equipment, Furniture & Materia",5023,batteries,26/05/2017,0121485,6.65,Revenue,Chorley BC Petty Cash,16301,,
Chorley Borough Council,http://statistics.data.gov.uk/id/local-authority/30UE,Democratic Represent and  Mgnt,1007,Chief Executive,Use Of Transport - Mayoral Car,30015,Transport Recharges,5017,car wash,26/05/2017,0121485,5.00,Revenue,Chorley BC Petty Cash,16301,,
Chorley Borough Council,http://statistics.data.gov.uk/id/local-authority/30UE,Elections,1012,Chief Executive,Tools & Equipment - Purchase,40003,"Equipment, Furniture & Materia",5023,tape,26/05/2017,0121485,1.66,Revenue,Chorley BC Petty Cash,16301,,
Chorley Borough Council,http://statistics.data.gov.uk/id/local-authority/30UE,Democratic Represent and  Mgnt,1007,Chief Executive,Stationery,40050,"Printing, Stationery & General",5026,visitors book,26/05/2017,0121485,12.53,Revenue,Chorley BC Petty Cash,16301,,
Chorley Borough Council,http://statistics.data.gov.uk/id/local-authority/30UE,Democratic Represent and  Mgnt,1007,Chief Executive,Stationery,40050,"Printing, Stationery & General",5026,index dividers,26/05/2017,0121485,3.07,Revenue,Chorley BC Petty Cash,16301,,
Chorley Borough Council,http://statistics.data.gov.uk/id/local-authority/30UE,Democratic Represent and  Mgnt,1007,Chief Executive,Lifelong Learning Activities,40194,Miscellaneous Expenses,5034,easter egg,26/05/2017,0121485,2.00,Revenue,Chorley BC Petty Cash,16301,,
Chorley Borough Council,http://statistics.data.gov.uk/id/local-authority/30UE,Democratic Represent and  Mgnt,1007,Chief Executive,Use Of Transport - Mayoral Car,30015,Transport Recharges,5017,car wash,26/05/2017,0121485,5.00,Revenue,Chorley BC Petty Cash,16301,,
Chorley Borough Council,http://statistics.data.gov.uk/id/local-authority/30UE,Unapportionable Central OHeads,1009,Chief Executive,Refreshments,40036,Catering,5024,sugar,26/05/2017,0121485,1.99,Revenue,Chorley BC Petty Cash,16301,,
Chorley Borough Council,http://statistics.data.gov.uk/id/local-authority/30UE,Unapportionable Central OHeads,1009,Chief Executive,Cleaning Materials,40019,"Equipment, Furniture & Materia",5023,dishwasher paraphenalia,26/05/2017,0121485,9.16,Revenue,Chorley BC Petty Cash,16301,,
Chorley Borough Council,http://statistics.data.gov.uk/id/local-authority/30UE,Unapportionable Central OHeads,1009,Chief Executive,Uniforms,40039,"Clothing, Uniforms and Laundry",5025,shirt,26/05/2017,0121485,12.00,Revenue,Chorley BC Petty Cash,16301,,
Chorley Borough Council,http://statistics.data.gov.uk/id/local-authority/30UE,Unapportionable Central OHeads,1009,Chief Executive,Uniforms,40039,"Clothing, Uniforms and Laundry",5025,shirt,26/05/2017,0121485,12.00,Revenue,Chorley BC Petty Cash,16301,,
Chorley Borough Council,http://statistics.data.gov.uk/id/local-authority/30UE,Democratic Represent and  Mgnt,1007,Chief Executive,Stationery,40050,"Printing, Stationery & General",5026,pen,26/05/2017,0121485,11.25,Revenue,Chorley BC Petty Cash,16301,,
Chorley Borough Council,http://statistics.data.gov.uk/id/local-authority/30UE,Elections,1012,Chief Executive,Tools & Equipment - Purchase,40003,"Equipment, Furniture & Materia",5023,sacks,26/05/2017,0121485,5.00,Revenue,Chorley BC Petty Cash,16301,,
Chorley Borough Council,http://statistics.data.gov.uk/id/local-authority/30UE,Democratic Represent and  Mgnt,1007,Chief Executive,Members Hospitality,40122,Expenses,5030,plates,26/05/2017,0121485,4.30,Revenue,Chorley BC Petty Cash,16301,,
Chorley Borough Council,http://statistics.data.gov.uk/id/local-authority/30UE,Unapportionable Central OHeads,1009,Chief Executive,Refreshments,40036,Catering,5024,crisps,26/05/2017,0121485,4.40,Revenue,Chorley BC Petty Cash,16301,,
Chorley Borough Council,http://statistics.data.gov.uk/id/local-authority/30UE,Democratic Represent and  Mgnt,1007,Chief Executive,Use Of Transport - Mayoral Car,30015,Transport Recharges,5017,car wash,26/05/2017,0121485,5.00,Revenue,Chorley BC Petty Cash,16301,,
Chorley Borough Council,http://statistics.data.gov.uk/id/local-authority/30UE,Unapportionable Central OHeads,1009,Chief Executive,Refreshments,40036,Catering,5024,sugar,26/05/2017,0121485,4.55,Revenue,Chorley BC Petty Cash,16301,,
Chorley Borough Council,http://statistics.data.gov.uk/id/local-authority/30UE,Elections,1012,Policy & Governance,Rent/Hire Of Premises,20017,Premises Rents,5007,room hire for polling station on 4 May 2017 - Lcc Election and 8 June 2017 - Parliamentary,17/05/2017,0121242,256.00,Revenue,Chorley District/ Chorley Healey Scouts,20906,,
Chorley Borough Council,http://statistics.data.gov.uk/id/local-authority/30UE,Unapportionable Central OHeads,1009,Policy & Governance,Tools & Equipment - Purchase,40003,"Equipment, Furniture & Materia",5023,As per quote 19705,26/05/2017,0121399,453.10,Revenue,Chorley Electrical Traders Ltd,16330,,
Chorley Borough Council,http://statistics.data.gov.uk/id/local-authority/30UE,Elections,1012,Policy & Governance,Rent/Hire Of Premises,20017,Premises Rents,5007,Hire of Chorley Methodist church hall for electionson 45 May 2017,26/05/2017,0121458,335.00,Revenue,Chorley Methodist Church,18422,,
Chorley Borough Council,http://statistics.data.gov.uk/id/local-authority/30UE,Democratic Represent and  Mgnt,1007,Policy & Governance,Processional Routes,40177,Miscellaneous Expenses,5034,Band for Mayor`s Civic Sunday Parade on 21st May 2017.,26/05/2017,0121465,400.00,Revenue,Chorley Pipe Band,21576,,
Chorley Borough Council,http://statistics.data.gov.uk/id/local-authority/30UE,Service Management & Support,1009,Customer & Digital,Vehicle Maintenance,30045,Direct Transport Costs,5016,Carryout tyre repairs as on invoice number 22712 for April 2017,10/05/2017,0120878,447.00,Revenue,Chorley Tyres,53719,,
Chorley Borough Council,http://statistics.data.gov.uk/id/local-authority/30UE,Community Development,1097,Policy & Governance,Core Funding Grants,40133,Grants and Subscriptions,5031,Commission for Vulnerable Adults (Women) for Year One,31/05/2017,0121522,"7,500.00",Revenue,Chorley Womens Centre,17036,,
Chorley Borough Council,http://statistics.data.gov.uk/id/local-authority/30UE,Unapportionable Central OHeads,1009,Customer & Digital,Consultants` Fees,40077,Services,5027,Lease consultancy fee 1st April 2017 to 31st March 2018,24/05/2017,0121344,500.00,Revenue,Chrystal Consulting,17613,,
Chorley Borough Council,http://statistics.data.gov.uk/id/local-authority/30UE,Unapportionable Central OHeads,1009,Business Development & Growth,Planned Maintenance,20006,Repairs Maintenance & Alts,5005,Blanket order for PPM contracts for alarms at Astley.,17/05/2017,0117923,385.88,Revenue,Chubb Electronic Sec Sys Ltd,16228,,
Chorley Borough Council,http://statistics.data.gov.uk/id/local-authority/30UE,Unapportionable Central OHeads,1009,Customer & Digital,Publications,40054,"Printing, Stationery & General",5026,CIPFA Publications Subscription for Chorley 1st April 2017 to 31st March 2018,17/05/2017,0121137,"2,632.50",Revenue,CIPFA Business Ltd,16247,,
Chorley Borough Council,http://statistics.data.gov.uk/id/local-authority/30UE,Unapportionable Central OHeads,1009,Policy & Governance,Computer Software-Maintenance,40107,Communication and Computing,5028,credited,22/05/2017,0120594,"10,500.00",Revenue,Civica UK Limited,17463,,
Chorley Borough Council,http://statistics.data.gov.uk/id/local-authority/30UE,Elections,1012,Policy & Governance,Rent/Hire Of Premises,20017,Premises Rents,5007,room hire for polling station on 4 May 2017,31/05/2017,0121513,250.00,Revenue,Clayton-Le-Woods Community Centre,18526,,
Chorley Borough Council,http://statistics.data.gov.uk/id/local-authority/30UE,Corporate Management,1008,Policy & Governance,Refreshments,40036,Catering,5024,reimbursment costs,05/05/2017,0120717,372.80,Revenue,Communities in Action North West,76687,,
Chorley Borough Council,http://statistics.data.gov.uk/id/local-authority/30UE,Unapportionable Central OHeads,1009,Policy & Governance,Miscellaneous Expenses,40200,Miscellaneous Expenses,5034,Provision of PA system for the Chorley Grand Prix,17/05/2017,0120566,475.00,Revenue,Compact Audio,75360,,
Chorley Borough Council,http://statistics.data.gov.uk/id/local-authority/30UE,Unapportionable Central OHeads,1009,Business Development & Growth,General Repairs - Reactive,20004,Repairs Maintenance & Alts,5005,Blanket Order for reactive repairs WEF 1/4/17,05/05/2017,0118306,"1,702.00",Revenue,Corlett Electrical Eng Co Ltd,16271,,
Chorley Borough Council,http://statistics.data.gov.uk/id/local-authority/30UE,Unapportionable Central OHeads,1009,Business Development & Growth,Planned Maintenance,20006,Repairs Maintenance & Alts,5005,Blanket order for PPM works for 2016 (second order).,24/05/2017,0121138,298.08,Revenue,Corlett Electrical Eng Co Ltd,16271,,
Chorley Borough Council,http://statistics.data.gov.uk/id/local-authority/30UE,Unapportionable Central OHeads,1009,Business Development & Growth,Planned Maintenance,20006,Repairs Maintenance & Alts,5005,Fixed wire testing of all sites as per tender quote.,24/05/2017,0121141,328.80,Revenue,Corlett Electrical Eng Co Ltd,16271,,
Chorley Borough Council,http://statistics.data.gov.uk/id/local-authority/30UE,Unapportionable Central OHeads,1009,Business Development & Growth,Planned Maintenance,20006,Repairs Maintenance & Alts,5005,Fixed wire testing of all sites as per tender quote.,24/05/2017,0121143,"5,426.40",Revenue,Corlett Electrical Eng Co Ltd,16271,,
Chorley Borough Council,http://statistics.data.gov.uk/id/local-authority/30UE,Service Management & Support,1009,Customer & Digital,Other Fees,40212,Miscellaneous Expenses,5034,Reconnect the power supply to the chemical store container,31/05/2017,0121146,276.22,Revenue,Corlett Electrical Eng Co Ltd,16271,,
Chorley Borough Council,http://statistics.data.gov.uk/id/local-authority/30UE,Unapportionable Central OHeads,1009,Business Development & Growth,Planned Maintenance,20006,Repairs Maintenance & Alts,5005,Blanket order for PPM works for 2016 (second order).,24/05/2017,0121159,270.40,Revenue,Corlett Electrical Eng Co Ltd,16271,,
Chorley Borough Council,http://statistics.data.gov.uk/id/local-authority/30UE,Unapportionable Central OHeads,1009,Business Development & Growth,Planned Maintenance,20006,Repairs Maintenance & Alts,5005,Blanket order for PPM works for 2016 (second order).,24/05/2017,0121168,356.04,Revenue,Corlett Electrical Eng Co Ltd,16271,,
Chorley Borough Council,http://statistics.data.gov.uk/id/local-authority/30UE,Unapportionable Central OHeads,1009,Business Development & Growth,Planned Maintenance,20006,Repairs Maintenance & Alts,5005,Blanket order for PPM works for 2016 (second order).,24/05/2017,0121170,327.14,Revenue,Corlett Electrical Eng Co Ltd,16271,,
Chorley Borough Council,http://statistics.data.gov.uk/id/local-authority/30UE,Unapportionable Central OHeads,1009,Business Development & Growth,Planned Maintenance,20006,Repairs Maintenance & Alts,5005,Blanket order for PPM works for 2016 (second order).,24/05/2017,0121221,360.98,Revenue,Corlett Electrical Eng Co Ltd,16271,,
Chorley Borough Council,http://statistics.data.gov.uk/id/local-authority/30UE,Unapportionable Central OHeads,1009,Business Development & Growth,General Repairs - Reactive,20004,Repairs Maintenance & Alts,5005,Blanket Order for reactive repairs WEF 1/4/17,24/05/2017,0121222,985.50,Revenue,Corlett Electrical Eng Co Ltd,16271,,
Chorley Borough Council,http://statistics.data.gov.uk/id/local-authority/30UE,Democratic Represent and  Mgnt,1007,Policy & Governance,Fixtures & Fittings - Purchase,20027,Fixtures and Fittings,5010,To supply two blinds for the Great Hall in Ecru 4222RB280* the wider fabric so there isn`t a join and to include new fittings,19/05/2017,0120880,945.00,Revenue,CSC Window Films & Blinds,56388,,
Chorley Borough Council,http://statistics.data.gov.uk/id/local-authority/30UE,Capital,Capital,Business Development & Growth,Architects Fees,03022,Capital Expenditure,Capital,Site Investigation Works,31/05/2017,0120907,"2,513.00",Capital,Curtins Consulting Engineers,20049,,
Chorley Borough Council,http://statistics.data.gov.uk/id/local-authority/30UE,Other Short Term Debtors,,Policy & Governance,Other Debtors,00098,Balance Sheet,Balance,Cycle Scheme for ZW,31/05/2017,0121531,833.33,Revenue,Cyclescheme Ltd,22390,,
Chorley Borough Council,http://statistics.data.gov.uk/id/local-authority/30UE,Business Support,1095,Policy & Governance,Miscellaneous Expenses,40200,Miscellaneous Expenses,5034,"Phase 1 Environmental Assessment re Fairclough House, Chorley",03/05/2017,0120711,"1,534.00",Revenue,Delta - Simons Environmental Consultants Ltd,76614,,
Chorley Borough Council,http://statistics.data.gov.uk/id/local-authority/30UE,Collection Fund Revenue Accoun,,Policy & Governance,NNDR Central Share,02034,Precepts & Collection Fund,Precept,central sahre br,26/05/2017,0121296,"1,117,002.00",Revenue,Department of Communities and Local Government,16280,,
Chorley Borough Council,http://statistics.data.gov.uk/id/local-authority/30UE,Collection Fund Revenue Accoun,,Policy & Governance,Transitional Protection,02033,Precepts & Collection Fund,Precept,transitional relief,26/05/2017,0121296,"209,575.00",Revenue,Department of Communities and Local Government,16280,,
Chorley Borough Council,http://statistics.data.gov.uk/id/local-authority/30UE,Democratic Represent and  Mgnt,1007,Customer & Digital,Supplies-Grounds Maintenance,40025,"Equipment, Furniture & Materia",5023,40 Tanalised green sleepers - 2.6m,10/05/2017,0120882,806.25,Revenue,Derek Fox & Sons,50884,,
Chorley Borough Council,http://statistics.data.gov.uk/id/local-authority/30UE,Democratic Represent and  Mgnt,1007,Chief Executive,General Subscriptions,40146,Grants and Subscriptions,5031,Annual Subscription 2017/2018,03/05/2017,0120770,410.00,Revenue,District Councils Network,58156,,
Chorley Borough Council,http://statistics.data.gov.uk/id/local-authority/30UE,Economic Development,1096,Business Development & Growth,Publicity - Advertising,40157,Miscellaneous Expenses,5034,Display Advertising Half Page - April Issue.  As per invoice no. 071720.,26/05/2017,0121468,300.00,Revenue,Diversified Business Communications UK,68712,,
Chorley Borough Council,http://statistics.data.gov.uk/id/local-authority/30UE,Unapportionable Central OHeads,1009,Policy & Governance,Miscellaneous Expenses,40200,Miscellaneous Expenses,5034,hire of loos,10/05/2017,0120630,420.00,Revenue,Dr Loo,76696,,
Chorley Borough Council,http://statistics.data.gov.uk/id/local-authority/30UE,Unapportionable Central OHeads,1009,Policy & Governance,Postages,40082,Communication and Computing,5028,Renewal of DX Subscription from 1st May 2017,26/05/2017,0121497,256.25,Revenue,DX Network Services Ltd,17551,,
Chorley Borough Council,http://statistics.data.gov.uk/id/local-authority/30UE,Democratic Represent and  Mgnt,1007,Business Development & Growth,Asset Maintenance Fund,20012,Repairs Maintenance & Alts,5005,"Replace floodlights in the Lancastrian Suite, Town Hall.",05/05/2017,0118385,"2,341.00",Revenue,Eccleston Electrical Services Limited,17529,,
Chorley Borough Council,http://statistics.data.gov.uk/id/local-authority/30UE,Capital,Capital,Business Development & Growth,Main Contractor,03007,Capital Expenditure,Capital,Replace External Lights in Clock Tower as per quotation,10/05/2017,0120377,"5,130.13",Capital,Eccleston Electrical Services Limited,17529,,
Chorley Borough Council,http://statistics.data.gov.uk/id/local-authority/30UE,Unapportionable Central OHeads,1009,Business Development & Growth,General Repairs - Reactive,20004,Repairs Maintenance & Alts,5005,Tech Forge ORDER8151 Uplighter checks (HLP8571),24/05/2017,0121171,312.19,Revenue,Eccleston Electrical Services Limited,17529,,
Chorley Borough Council,http://statistics.data.gov.uk/id/local-authority/30UE,Unapportionable Central OHeads,1009,Business Development & Growth,General Repairs - Reactive,20004,Repairs Maintenance & Alts,5005,Tech Forge ORDER8103 Repair damaged pyro (HLP8536),24/05/2017,0121172,587.78,Revenue,Eccleston Electrical Services Limited,17529,,
Chorley Borough Council,http://statistics.data.gov.uk/id/local-authority/30UE,Democratic Represent and  Mgnt,1007,Customer & Digital,Supplies-Grounds Maintenance,40025,"Equipment, Furniture & Materia",5023,Two Willow figures on Brooke St roundabout,24/05/2017,0121350,"1,100.00",Revenue,Eco-Arts,21984,,
Chorley Borough Council,http://statistics.data.gov.uk/id/local-authority/30UE,Central Support Services,1009,Customer & Digital,Mobile Voice and Data,40086,Communication and Computing,5028,Apr-17,10/05/2017,0120972,505.22,Revenue,EE - Orange,16486,,
Chorley Borough Council,http://statistics.data.gov.uk/id/local-authority/30UE,Central Support Services,1009,Customer & Digital,Mobile Voice and Data,40086,Communication and Computing,5028,Apr-17,10/05/2017,0120971,"2,090.16",Revenue,EE LIMITED,63366,,
Chorley Borough Council,http://statistics.data.gov.uk/id/local-authority/30UE,Unapportionable Central OHeads,1009,Business Development & Growth,Planned Maintenance,20006,Repairs Maintenance & Alts,5005,PPM works for 2016.,10/05/2017,0120746,291.50,Revenue,Ellesmere Engineering Co Ltd,17520,,
Chorley Borough Council,http://statistics.data.gov.uk/id/local-authority/30UE,Unapportionable Central OHeads,1009,Business Development & Growth,General Repairs - Reactive,20004,Repairs Maintenance & Alts,5005,Reactive PRD Works WEF 1/4/17,10/05/2017,0120905,660.55,Revenue,Ellesmere Engineering Co Ltd,17520,,
Chorley Borough Council,http://statistics.data.gov.uk/id/local-authority/30UE,Corporate Management,1008,Customer & Digital,Miscellaneous Expenses,40200,Miscellaneous Expenses,5034,2 day conference and accommodation for LARAC on 11/12 Oct 2017 in Nottingham,19/05/2017,0121320,259.00,Revenue,Environmental Media Group Ltd,70618,,
Chorley Borough Council,http://statistics.data.gov.uk/id/local-authority/30UE,Capital,Capital,Business Development & Growth,Main Contractor,03007,Capital Expenditure,Capital,Interim Certificate 2 - Primrose Gardens/Fleet Street,12/05/2017,0121022,"84,515.13",Capital,Eric Wright Construction Ltd,76464,,
Chorley Borough Council,http://statistics.data.gov.uk/id/local-authority/30UE,Capital,Capital,Business Development & Growth,Main Contractor,03007,Capital Expenditure,Capital,Pre-Construction Services PRE-ADDRESS REDACTED,24/05/2017,0121327,"114,262.12",Capital,Eric Wright Construction Ltd,76464,,
Chorley Borough Council,http://statistics.data.gov.uk/id/local-authority/30UE,Unapportionable Central OHeads,1009,Customer & Digital,Stationery,40050,"Printing, Stationery & General",5026,200 X Pre Printed Cards Chorley Council Staff ID Badges + Delivery,12/05/2017,0121006,303.50,Revenue,Essentra Security,66416,,
Chorley Borough Council,http://statistics.data.gov.uk/id/local-authority/30UE,Corporate Management,1008,Customer & Digital,"Hackney Badges, Plates Etc.",40023,"Equipment, Furniture & Materia",5023,600 x Bespoke pre-printed cards (300 of each design) - 250  300 of each Private Hire & Hackney ID Carriage Badges Delivery ,12/05/2017,0121007,259.52,Revenue,Essentra Security,66416,,
Chorley Borough Council,http://statistics.data.gov.uk/id/local-authority/30UE,Economic Development,1096,Business Development & Growth,Miscellaneous Expenses,40200,Miscellaneous Expenses,5034,For Chorley annual contribution of 499 to the Central Lancs Business Event.,17/05/2017,0121128,499.00,Revenue,Events Northern Limited,20565,,
Chorley Borough Council,http://statistics.data.gov.uk/id/local-authority/30UE,Democratic Represent and  Mgnt,1007,Customer & Digital,Supplies-Grounds Maintenance,40025,"Equipment, Furniture & Materia",5023,"Perennial plants : Coreopsis x 24, Perovskia Atriplicilolia x 30, Phlox Paniculata x 17, Astible Japonica x 24, Astible ",26/05/2017,0121422,483.30,Revenue,Everglades Nurseries Ltd,20202,,
Chorley Borough Council,http://statistics.data.gov.uk/id/local-authority/30UE,Service Management & Support,1009,Customer & Digital,Supplies-Grounds Maintenance,40025,"Equipment, Furniture & Materia",5023,5 - 14CM - 16CM heavy standard White Cherry Blossom 5 - 14cm - 16cm heavy standard Pink Cherry Blossom,26/05/2017,0121425,750.00,Revenue,Everglades Nurseries Ltd,20202,,
Chorley Borough Council,http://statistics.data.gov.uk/id/local-authority/30UE,Unapportionable Central OHeads,1009,Policy & Governance,HR Approved Training Expenses,17001,Indirect Employee Expenses,5002,"Training Courses - Empowering People & Powerful Conversations 27/04/17, Coaching Skills for Managers 11/05/17 and 20/06/17,",12/05/2017,0121045,"4,987.20",Revenue,Evolving Edge Ltd,76455,,
Chorley Borough Council,http://statistics.data.gov.uk/id/local-authority/30UE,Service Management & Support,1009,Customer & Digital,Tools & Equipment - Maintenance,40005,"Equipment, Furniture & Materia",5023,Supply parts as on Pro-Forma invoice number 119910 as per Email from NAME REDACTED,03/05/2017,0120724,999.88,Revenue,F R Sharrock Ltd,18091,,
Chorley Borough Council,http://statistics.data.gov.uk/id/local-authority/30UE,Service Management & Support,1009,Customer & Digital,Vehicle Maintenance,30045,Direct Transport Costs,5016,Carryout insurance repairs to cab door on Kubota RTV 900 as requested Reg PO16MFA aS ON INVOICE NUMBER 134950,17/05/2017,0121209,764.37,Revenue,F R Sharrock Ltd,18091,,
Chorley Borough Council,http://statistics.data.gov.uk/id/local-authority/30UE,Service Management & Support,1009,Customer & Digital,Vehicle Maintenance,30045,Direct Transport Costs,5016,For various machinery parts as per invoice number 120770,31/05/2017,0121490,"2,559.39",Revenue,F R Sharrock Ltd,18091,,
Chorley Borough Council,http://statistics.data.gov.uk/id/local-authority/30UE,Private Sector HSG Renewal,1073,Early Intervention,Miscellaneous Expenses,40200,Miscellaneous Expenses,5034,contribution,12/05/2017,0121065,"2,700.00",Revenue,Firefly Energi Ltd,69925,,
Chorley Borough Council,http://statistics.data.gov.uk/id/local-authority/30UE,Service Management & Support,1009,Customer & Digital,Vehicle Maintenance,30045,Direct Transport Costs,5016,Carryout 8 weekly safety inspection on PN66RCU as required for Olicence requirement,10/05/2017,0120879,120.00,Revenue,Freight Transport Assoc Ltd,16333,,
Chorley Borough Council,http://statistics.data.gov.uk/id/local-authority/30UE,Service Management & Support,1009,Customer & Digital,Vehicle Maintenance,30045,Direct Transport Costs,5016,Carryout 8 weekly safety inspection on RV14DVB as required for Olicence requirement,10/05/2017,0120879,120.00,Revenue,Freight Transport Assoc Ltd,16333,,
Chorley Borough Council,http://statistics.data.gov.uk/id/local-authority/30UE,Service Management & Support,1009,Customer & Digital,Vehicle Maintenance,30045,Direct Transport Costs,5016,Carryout 8 weekly safety inspection on PL16LVK as required for Olicence requirement,10/05/2017,0120879,120.00,Revenue,Freight Transport Assoc Ltd,16333,,
Chorley Borough Council,http://statistics.data.gov.uk/id/local-authority/30UE,Service Management & Support,1009,Customer & Digital,Freight Transport Assoc Fees,40150,Grants and Subscriptions,5031,Carryout 8 weekly safety inspection on RV14DVB as required,10/05/2017,0120881,120.00,Revenue,Freight Transport Assoc Ltd,16333,,
Chorley Borough Council,http://statistics.data.gov.uk/id/local-authority/30UE,Service Management & Support,1009,Customer & Digital,Freight Transport Assoc Fees,40150,Grants and Subscriptions,5031,Carryout 8 weekly safety inspection on PL16LVK as required for Olicence compliance,10/05/2017,0120881,120.00,Revenue,Freight Transport Assoc Ltd,16333,,
Chorley Borough Council,http://statistics.data.gov.uk/id/local-authority/30UE,Service Management & Support,1009,Customer & Digital,Freight Transport Assoc Fees,40150,Grants and Subscriptions,5031,Carryout 8 weekly safety inspection on PN66RCU as required for Olicence compliance,10/05/2017,0120881,120.00,Revenue,Freight Transport Assoc Ltd,16333,,
Chorley Borough Council,http://statistics.data.gov.uk/id/local-authority/30UE,Business Support,1095,Business Development & Growth,Gas,20014,Energy Costs,5006,ADDRESS REDACTED,05/05/2017,0120786,334.28,Revenue,Gazprom Energy,56502,,
Chorley Borough Council,http://statistics.data.gov.uk/id/local-authority/30UE,Business Support,1095,Business Development & Growth,Gas,20014,Energy Costs,5006,ADDRESS REDACTED,26/05/2017,0121480,275.63,Revenue,Gazprom Energy,56502,,
Chorley Borough Council,http://statistics.data.gov.uk/id/local-authority/30UE,Service Management & Support,1009,Customer & Digital,Training Course Fees,17010,Indirect Employee Expenses,5002,Wet pour training course. w/c 24th April,31/05/2017,0120946,650.00,Revenue,GB Sport & Leisure,21305,,
Chorley Borough Council,http://statistics.data.gov.uk/id/local-authority/30UE,Democratic Represent and  Mgnt,1007,Policy & Governance,Miscellaneous Expenses,40200,Miscellaneous Expenses,5034,Provision of costumes as part of Army Covenant Grant Funding,19/05/2017,0121351,450.00,Revenue,NAME REDACTED,22525,,
Chorley Borough Council,http://statistics.data.gov.uk/id/local-authority/30UE,Elections,1012,Policy & Governance,Computer Software-Maintenance,40107,Communication and Computing,5028,annual support and maintenance for EROS LLPG and web EROS,26/05/2017,0121352,"9,206.99",Revenue,Halarose Limited,18133,,
Chorley Borough Council,http://statistics.data.gov.uk/id/local-authority/30UE,Service Management & Support,1009,Customer & Digital,Tools & Equipment - Purchase,40003,"Equipment, Furniture & Materia",5023,Please supply 1 x Karcher Power Washer as per the e-mailed quote sent by NAME REDACTED: Revised price for Karcher HDS ,24/05/2017,0121392,"1,600.00",Revenue,Hanson Cleaning Equipment Ltd,17297,,
Chorley Borough Council,http://statistics.data.gov.uk/id/local-authority/30UE,Corporate Management,1008,Customer & Digital,Tools & Equipment - Purchase,40003,"Equipment, Furniture & Materia",5023,Please supply 1 x Karcher HDS 7/10 power washer at the agreed price of 2000.00,24/05/2017,0121392,"2,000.00",Revenue,Hanson Cleaning Equipment Ltd,17297,,
Chorley Borough Council,http://statistics.data.gov.uk/id/local-authority/30UE,Service Management & Support,1009,Customer & Digital,Supplies-Grounds Maintenance,40025,"Equipment, Furniture & Materia",5023,Yarrow Valley Blue Walk Leaflets x 4 kinds - 500 of each= 2000,17/05/2017,0121046,293.00,Revenue,Haslam PrintersLtd,21777,,
Chorley Borough Council,http://statistics.data.gov.uk/id/local-authority/30UE,Community Development,1097,Policy & Governance,Core Funding Grants,40133,Grants and Subscriptions,5031,funding,10/05/2017,0120960,500.00,Revenue,Heath Charnock Parish Council,16208,,
Chorley Borough Council,http://statistics.data.gov.uk/id/local-authority/30UE,Economic Development,1096,Business Development & Growth,Miscellaneous Expenses,40200,Miscellaneous Expenses,5034,For amendments to Choose Chorley film footage for Business Evening on 6 April 2017,17/05/2017,0120999,975.00,Revenue,Heckfords,58862,,
Chorley Borough Council,http://statistics.data.gov.uk/id/local-authority/30UE,Capital,Capital,Business Development & Growth,Main Contractor,03007,Capital Expenditure,Capital,Bengal Street Move 27/2/2017 Tech Forge 8228,05/05/2017,0120378,985.00,Capital,Henry Nightingale & Son,17923,,
Chorley Borough Council,http://statistics.data.gov.uk/id/local-authority/30UE,Capital,Capital,Customer & Digital,Other Legal Fees,03020,Capital Expenditure,Capital,The Drafting of the pre-construction services agreement,12/05/2017,0120827,"9,005.42",Capital,Hill Dickinson LLP,62638,,
Chorley Borough Council,http://statistics.data.gov.uk/id/local-authority/30UE,Business Support,1095,Business Development & Growth,Legal Fees,40171,Miscellaneous Expenses,5034,Primrose Gardens Extra Care Facility - PCSA,26/05/2017,0121420,"2,000.00",Revenue,Hill Dickinson LLP,62638,,
Chorley Borough Council,http://statistics.data.gov.uk/id/local-authority/30UE,Community Development,1097,Policy & Governance,Core Funding Grants,40133,Grants and Subscriptions,5031,funding,10/05/2017,0120961,250.00,Revenue,Hoghton Social & Sports Centre,76677,,
Chorley Borough Council,http://statistics.data.gov.uk/id/local-authority/30UE,Community Development,1097,Policy & Governance,Core Funding Grants,40133,Grants and Subscriptions,5031,Contract extension of one month,03/05/2017,0120812,"1,833.00",Revenue,Home-Start Central Lancashire Ltd,20585,,
Chorley Borough Council,http://statistics.data.gov.uk/id/local-authority/30UE,Community Development,1097,Policy & Governance,Core Funding Grants,40133,Grants and Subscriptions,5031,funding,10/05/2017,0120865,500.00,Revenue,Home-Start Central Lancashire Ltd,20585,,
Chorley Borough Council,http://statistics.data.gov.uk/id/local-authority/30UE,Unapportionable Central OHeads,1009,Policy & Governance,Corp Training Organisational Development,17006,Indirect Employee Expenses,5002,ILM L3 Award in Coaching/Conducting Fair Investigations Course,05/05/2017,0120835,"1,099.00",Revenue,Hyndburn Borough Council,17084,,
Chorley Borough Council,http://statistics.data.gov.uk/id/local-authority/30UE,Community Development,1097,Policy & Governance,Miscellaneous Expenses,40200,Miscellaneous Expenses,5034,Subscription for Grantfinder and Open4Community,03/05/2017,0120801,"5,298.50",Revenue,IDOX Software Limited,17542,,
Chorley Borough Council,http://statistics.data.gov.uk/id/local-authority/30UE,Corporate Management,1008,Policy & Governance,General Subscriptions,40146,Grants and Subscriptions,5031,LG Inform Subscription contribution with South Ribble,19/05/2017,0121014,405.00,Revenue,Improvement & Development Agency,70496,,
Chorley Borough Council,http://statistics.data.gov.uk/id/local-authority/30UE,Corporate Management,1008,Policy & Governance,General Subscriptions,40146,Grants and Subscriptions,5031,credited,25/04/2017,0121118,809.00,Revenue,Improvement & Development Agency,70496,,
Chorley Borough Council,http://statistics.data.gov.uk/id/local-authority/30UE,Corporate Management,1008,Policy & Governance,Rent/Hire Of Premises,20017,Premises Rents,5007,Payment for workshop support with LCC Digital,26/05/2017,0121400,"2,600.00",Revenue,iNetwork (Tameside Council),19554,,
Chorley Borough Council,http://statistics.data.gov.uk/id/local-authority/30UE,Corporate Management,1008,Early Intervention,Professional Fees,14011,Direct Employee Expenses,5001,Small organisation membership for Chorley Council for 2017/18 for the following people: NAMES REDACTED,03/05/2017,0120659,300.00,Revenue,Institute Of Licensing,16987,,
Chorley Borough Council,http://statistics.data.gov.uk/id/local-authority/30UE,Business Support,1095,Business Development & Growth,Refuse Collection,20037,Cleaning and Domestic Supplies,5012,Waste Compactor Rental Services @ 270.0 per month April 17 - March 18,03/05/2017,0120795,270.00,Revenue,J&H Rentals Limited,70699,,
Chorley Borough Council,http://statistics.data.gov.uk/id/local-authority/30UE,Business Support,1095,Business Development & Growth,Refuse Collection,20037,Cleaning and Domestic Supplies,5012,Waste Compactor Rental Services @ 270.0 per month April 17 - March 18,05/05/2017,0120822,270.00,Revenue,J&H Rentals Limited,70699,,
Chorley Borough Council,http://statistics.data.gov.uk/id/local-authority/30UE,Business Support,1095,Business Development & Growth,Grants To Other Organisations,40127,Grants and Subscriptions,5031,sib grant,17/05/2017,0121066,250.00,Revenue,NAME REDACTED,76716,,
Chorley Borough Council,http://statistics.data.gov.uk/id/local-authority/30UE,Capital,Capital,Business Development & Growth,Main Contractor,03007,Capital Expenditure,Capital,Relocation of Air Con Unit and disconnection of heating units,05/05/2017,0120307,"1,371.00",Capital,James Mercer,20194,,
Chorley Borough Council,http://statistics.data.gov.uk/id/local-authority/30UE,Unapportionable Central OHeads,1009,Business Development & Growth,Planned Maintenance,20006,Repairs Maintenance & Alts,5005,Blanket order for PPM works until end of 2016.,10/05/2017,0120754,270.90,Revenue,James Mercer,20194,,
Chorley Borough Council,http://statistics.data.gov.uk/id/local-authority/30UE,Unapportionable Central OHeads,1009,Business Development & Growth,General Repairs - Reactive,20004,Repairs Maintenance & Alts,5005,Blanket order for Reactive works until end of 2016,10/05/2017,0120755,255.22,Revenue,James Mercer,20194,,
Chorley Borough Council,http://statistics.data.gov.uk/id/local-authority/30UE,Service Management & Support,1009,Customer & Digital,Supplies-Grounds Maintenance,40025,"Equipment, Furniture & Materia",5023,Street Name Plate 1200 mm x 76 mm x 3.2 mm galv tube.  Product Code = SpCo009,10/05/2017,0120658,477.00,Revenue,Jewsons Limited,17844,,
Chorley Borough Council,http://statistics.data.gov.uk/id/local-authority/30UE,Service Management & Support,1009,Customer & Digital,Supplies-Grounds Maintenance,40025,"Equipment, Furniture & Materia",5023,"30 - 4``x4`` birdmouth posts 43 metres of 4`` rails",10/05/2017,0120913,335.26,Revenue,John H Mayor & Sons Ltd,16635,,
Chorley Borough Council,http://statistics.data.gov.uk/id/local-authority/30UE,Capital,Capital,Business Development & Growth,Main Contractor,03007,Capital Expenditure,Capital,Construction of extended and reconfigured car park at Yarrow Valley Country Park in accordance with tender submitted in Jan17.,10/05/2017,0120857,"66,928.80",Capital,John Wade Groundworks Ltd,76676,,
Chorley Borough Council,http://statistics.data.gov.uk/id/local-authority/30UE,Corporate Management,1008,Policy & Governance,Publicity - Advertising,40157,Miscellaneous Expenses,5034,Garden waste advert,17/05/2017,0120813,838.43,Revenue,Johnston Publishing Ltd,20072,,
Chorley Borough Council,http://statistics.data.gov.uk/id/local-authority/30UE,Development Control,1091,Customer & Digital,Statutory Notices,40160,Miscellaneous Expenses,5034,Planning Public Notices to appear in the Chorley Guardian April 2017 to March 2018,31/05/2017,0121500,760.38,Revenue,Johnston Publishing Ltd,20072,,
Chorley Borough Council,http://statistics.data.gov.uk/id/local-authority/30UE,Central Support Services,1009,Customer & Digital,Miscellaneous Expenses,40200,Miscellaneous Expenses,5034,New car parking surface at Scawfell Road Chorley,17/05/2017,0120442,"9,999.00",Revenue,K Darlington and Son,21930,,
Chorley Borough Council,http://statistics.data.gov.uk/id/local-authority/30UE,Business Support,1095,Business Development & Growth,Professional Fees,40063,Services,5027,"negotiating and giving advice regarding the rent review effective 5th July 2015 leading to formal settlement at 115,850pax ",10/05/2017,0120910,"1,000.00",Revenue,Keenan & Co Retail Ltd  T/A K2 Retail,76423,,
Chorley Borough Council,http://statistics.data.gov.uk/id/local-authority/30UE,Business Support,1095,Business Development & Growth,Professional Fees,40063,Services,5027,"negotiating and giving advice regarding rent review effective 15th Nov 2014 leading to formal settlement at 49,000pax ",10/05/2017,0120911,"1,000.00",Revenue,Keenan & Co Retail Ltd  T/A K2 Retail,76423,,
Chorley Borough Council,http://statistics.data.gov.uk/id/local-authority/30UE,Control Accounts,Control,Policy & Governance,General Balances,00100,Balance Sheet,Balance,sal ded,26/05/2017,0121302,"1,151.98",Revenue,Labour Councillors Association,17577,,
Chorley Borough Council,http://statistics.data.gov.uk/id/local-authority/30UE,Central Support Services,1009,Customer & Digital,Internet Charges,40104,Communication and Computing,5028,"ISP annual agreement - year 4 of 5, incorporating RPI increase 01/04/16 to 31/03/17",17/05/2017,0120227,"19,058.00",Revenue,Lancashire County Council,17758,,
Chorley Borough Council,http://statistics.data.gov.uk/id/local-authority/30UE,Corporate Management,1008,Policy & Governance,Other Contributions,40145,Grants and Subscriptions,5031,"Subsidy for the provision of bus services 109A/24A and 6/6A during Q2, and then the extended subsidy for Q3 and Q4 2016/17",12/05/2017,0120443,"36,328.68",Revenue,Lancashire County Council,17758,,
Chorley Borough Council,http://statistics.data.gov.uk/id/local-authority/30UE,Capital,Capital,Early Intervention,Grants,03002,Capital Expenditure,Capital,ADDRESS REDACTED,05/05/2017,0120870,"2,009.00",Capital,Lancashire County Council,17758,,
Chorley Borough Council,http://statistics.data.gov.uk/id/local-authority/30UE,Capital,Capital,Early Intervention,Grants,03002,Capital Expenditure,Capital,ADDRESS REDACTED,10/05/2017,0120962,567.00,Capital,Lancashire County Council,17758,,
Chorley Borough Council,http://statistics.data.gov.uk/id/local-authority/30UE,Capital,Capital,Business Development & Growth,Main Contractor,03007,Capital Expenditure,Capital,Additional works to Fazakerley Street over and above the original tendered items as per previous order PRD045882,17/05/2017,0121243,"20,000.00",Capital,Lancashire County Council,20027,,
Chorley Borough Council,http://statistics.data.gov.uk/id/local-authority/30UE,Public Transport,1067,Policy & Governance,Other Fees,40212,Miscellaneous Expenses,5034,Chorley Interchange Rents 2016/17,26/05/2017,0121277,"16,000.00",Revenue,Lancashire County Council,17758,,
Chorley Borough Council,http://statistics.data.gov.uk/id/local-authority/30UE,Precepts and Collection Fund,Precepts,Policy & Governance,LCC Precept,02009,Precepts & Collection Fund,Precept,ctax,26/05/2017,0121292,"4,438,809.00",Revenue,Lancashire County Council,18386,,
Chorley Borough Council,http://statistics.data.gov.uk/id/local-authority/30UE,Collection Fund Revenue Accoun,,Policy & Governance,NNDR County Share,02036,Precepts & Collection Fund,Precept,business rates,26/05/2017,0121292,"212,481.00",Revenue,Lancashire County Council,18386,,
Chorley Borough Council,http://statistics.data.gov.uk/id/local-authority/30UE,Unapportionable Central OHeads,1009,Policy & Governance,Miscellaneous Expenses,40200,Miscellaneous Expenses,5034,Provision of lunch bags for stewards working at the Chorley Grand Prix,17/05/2017,0120587,443.75,Revenue,Lancashire Fayre,17761,,
Chorley Borough Council,http://statistics.data.gov.uk/id/local-authority/30UE,Corporate Management,1008,Policy & Governance,Other Fees,40212,Miscellaneous Expenses,5034,4 weekly payment to cover meals on wheels subsidy,17/05/2017,0121259,900.22,Revenue,Lancashire Fayre,62967,,
Chorley Borough Council,http://statistics.data.gov.uk/id/local-authority/30UE,Other Short Term Creditors,,Policy & Governance,General Balances,00100,Balance Sheet,Balance,ees,26/05/2017,0119786,"41,786.62",Revenue,Lancashire Pensions Services,16696,,
Chorley Borough Council,http://statistics.data.gov.uk/id/local-authority/30UE,Other Short Term Creditors,,Policy & Governance,General Balances,00100,Balance Sheet,Balance,ers,26/05/2017,0119786,"70,134.30",Revenue,Lancashire Pensions Services,16696,,
Chorley Borough Council,http://statistics.data.gov.uk/id/local-authority/30UE,Unapportionable Central OHeads,1009,Policy & Governance,Pensions Deficit Recovery Contributions,12003,Direct Employee Expenses,5001,deficit,26/05/2017,0119786,"79,633.33",Revenue,Lancashire Pensions Services,16696,,
Chorley Borough Council,http://statistics.data.gov.uk/id/local-authority/30UE,Community Development,1097,Policy & Governance,Core Funding Grants,40133,Grants and Subscriptions,5031,Payment of contact extension for two months,03/05/2017,0120814,"12,500.00",Revenue,Lancashire West Citizens Advice Bureaux,17035,,
Chorley Borough Council,http://statistics.data.gov.uk/id/local-authority/30UE,Precepts and Collection Fund,Precepts,Policy & Governance,LCFA Precept,02011,Precepts & Collection Fund,Precept,ctax,26/05/2017,0121291,"238,079.00",Revenue,Lancs Combined Fire Authority,17768,,
Chorley Borough Council,http://statistics.data.gov.uk/id/local-authority/30UE,Collection Fund Revenue Accoun,,Policy & Governance,NNDR Fire Share,02037,Precepts & Collection Fund,Precept,business rates,26/05/2017,0121291,"23,614.00",Revenue,Lancs Combined Fire Authority,17768,,
Chorley Borough Council,http://statistics.data.gov.uk/id/local-authority/30UE,Unapportionable Central OHeads,1009,Policy & Governance,General Subscriptions,40146,Grants and Subscriptions,5031,Membership renewal for 01.04.17 - 31.03.18,03/05/2017,0120815,300.00,Revenue,Lawyers in Local Government Ltd,60338,,
Chorley Borough Council,http://statistics.data.gov.uk/id/local-authority/30UE,Corporate Management,1008,Policy & Governance,Car Leasing Payment,14100,Direct Employee Expenses,5001,Quote: 17039250/00001 Driver: NAME REDACTED Nissan Qashqai 1.5 dCi Acenta (Smart Vision/Comfort/Tech) 5dr Lease: ,12/05/2017,0120656,"3,072.96",Revenue,Lex Autolease Ltd,70682,,
Chorley Borough Council,http://statistics.data.gov.uk/id/local-authority/30UE,Corporate Management,1008,Policy & Governance,Car Leasing Payment,14100,Direct Employee Expenses,5001,Car Lease,12/05/2017,0120656,253.74,Revenue,Lex Autolease Ltd,70682,,
Chorley Borough Council,http://statistics.data.gov.uk/id/local-authority/30UE,Unapportionable Central OHeads,1009,Policy & Governance,Stationery,40050,"Printing, Stationery & General",5026,2793888 - Platronics SupraPlus Headset with Voice Tube/Monaural,17/05/2017,0121125,359.65,Revenue,Lyreco UK Ltd,17623,,
Chorley Borough Council,http://statistics.data.gov.uk/id/local-authority/30UE,Unapportionable Central OHeads,1009,Policy & Governance,Photocopier Consumables,40049,"Printing, Stationery & General",5026,Black Toner Cartridge for Lexmark T650 printer,17/05/2017,0121184,815.35,Revenue,Lyreco UK Ltd,17623,,
Chorley Borough Council,http://statistics.data.gov.uk/id/local-authority/30UE,Unapportionable Central OHeads,1009,Policy & Governance,Photocopier Consumables,40049,"Printing, Stationery & General",5026,LYRECO  I/JET CART COMP HP339 C8767 BLK,17/05/2017,0121184,13.24,Revenue,Lyreco UK Ltd,17623,,
Chorley Borough Council,http://statistics.data.gov.uk/id/local-authority/30UE,Unapportionable Central OHeads,1009,Policy & Governance,Photocopier Consumables,40049,"Printing, Stationery & General",5026,3.332.451 LYRECO I/JET CART COMP HP 343 C8766 3COL,17/05/2017,0121184,13.37,Revenue,Lyreco UK Ltd,17623,,
Chorley Borough Council,http://statistics.data.gov.uk/id/local-authority/30UE,Democratic Represent and  Mgnt,1007,Business Development & Growth,Grounds Maintenance Contractor,20043,Grounds Maintenance Costs,5013,"3 days woodland management to the trees around the reed bed in Astley Park to thin, coppice and remove unsuitable species.",17/05/2017,0121279,715.00,Revenue,M J Walker,62044,,
Chorley Borough Council,http://statistics.data.gov.uk/id/local-authority/30UE,Service Management & Support,1009,Customer & Digital,Grounds Maintenance Contractor,20043,Grounds Maintenance Costs,5013,For various tree work - specified on invoice 18 (tree work up to 30th April 2017),19/05/2017,0121331,"3,365.00",Revenue,M J Walker,62044,,
Chorley Borough Council,http://statistics.data.gov.uk/id/local-authority/30UE,Elections,1012,Policy & Governance,Tools & Equipment - Maintenance,40005,"Equipment, Furniture & Materia",5023,Service Letter Opener,03/05/2017,0120794,300.00,Revenue,Mailopeners,20435,,
Chorley Borough Council,http://statistics.data.gov.uk/id/local-authority/30UE,Elections,1012,Policy & Governance,Rent/Hire Of Premises,20017,Premises Rents,5007,1 mailpost 125 letter opener,12/05/2017,0121049,"1,500.00",Revenue,Mailopeners,20435,,
Chorley Borough Council,http://statistics.data.gov.uk/id/local-authority/30UE,Capital,Capital,Business Development & Growth,Main Contractor,03007,Capital Expenditure,Capital,Asbestos Survey Prior to Refurb,19/05/2017,0120182,425.00,Capital,Malrod Insulations Ltd,17449,,
Chorley Borough Council,http://statistics.data.gov.uk/id/local-authority/30UE,Business Support,1095,Business Development & Growth,Grants To Other Organisations,40127,Grants and Subscriptions,5031,sib grant,17/05/2017,0121068,250.00,Revenue,NAME REDACTED,76715,,
Chorley Borough Council,http://statistics.data.gov.uk/id/local-authority/30UE,Unapportionable Central OHeads,1009,Policy & Governance,Miscellaneous Expenses,40200,Miscellaneous Expenses,5034,Photography at 8 council events throughout 2017 as listed in the quote plus Ambulance Hall interior,19/05/2017,0120661,445.00,Revenue,Martin Birchall Photography,22503,,
Chorley Borough Council,http://statistics.data.gov.uk/id/local-authority/30UE,Unapportionable Central OHeads,1009,Policy & Governance,Agency Staff,13000,Direct Employee Expenses,5001,AGENCY FEES ,03/05/2017,0120787,375.26,Revenue,Matrix SCM Ltd,22128,,
Chorley Borough Council,http://statistics.data.gov.uk/id/local-authority/30UE,Unapportionable Central OHeads,1009,Policy & Governance,Agency Staff,13000,Direct Employee Expenses,5001,AGENCY FEES ,10/05/2017,0120975,472.70,Revenue,Matrix SCM Ltd,22128,,
Chorley Borough Council,http://statistics.data.gov.uk/id/local-authority/30UE,Housing Strategy,1069,Policy & Governance,Agency Staff,13000,Direct Employee Expenses,5001,AGENCY FEES ,10/05/2017,0120975,"1,184.96",Revenue,Matrix SCM Ltd,22128,,
Chorley Borough Council,http://statistics.data.gov.uk/id/local-authority/30UE,Unapportionable Central OHeads,1009,Policy & Governance,Agency Staff,13000,Direct Employee Expenses,5001,AGENCY FEES ,26/05/2017,0121380,472.70,Revenue,Matrix SCM Ltd,22128,,
Chorley Borough Council,http://statistics.data.gov.uk/id/local-authority/30UE,Housing Strategy,1069,Policy & Governance,Agency Staff,13000,Direct Employee Expenses,5001,AGENCY FEES ,26/05/2017,0121380,347.31,Revenue,Matrix SCM Ltd,22128,,
Chorley Borough Council,http://statistics.data.gov.uk/id/local-authority/30UE,Capital,Capital,Customer & Digital,Equipment,03014,Capital Expenditure,Capital,grey wheeled bins to specified addresses within Chorley Borough area. Delivery price 1.52 per property.  Estimated Quantity : ,10/05/2017,0120510,"6,890.16",Capital,MGB Plastics Ltd,18624,,
Chorley Borough Council,http://statistics.data.gov.uk/id/local-authority/30UE,Capital,Capital,Customer & Digital,Equipment,03014,Capital Expenditure,Capital,grey wheeled bins to specified addresses within Chorley Borough area. Delivery price 1.52 per property.  Estimated Quantity :,10/05/2017,0120771,"4,172.40",Capital,MGB Plastics Ltd,18624,,
Chorley Borough Council,http://statistics.data.gov.uk/id/local-authority/30UE,Capital,Capital,Customer & Digital,Equipment,03014,Capital Expenditure,Capital,grey wheeled bins to specified addresses within Chorley Borough area. Delivery price 1.52 per property.  Estimated Quantity : ,05/05/2017,0120772,"2,812.00",Capital,MGB Plastics Ltd,18624,,
Chorley Borough Council,http://statistics.data.gov.uk/id/local-authority/30UE,Capital,Capital,Customer & Digital,Equipment,03014,Capital Expenditure,Capital,grey wheeled bins to specified addresses within Chorley Borough area. Delivery price 1.52 per property.  Estimated Quantity : ,10/05/2017,0120773,"9,747.76",Capital,MGB Plastics Ltd,18624,,
Chorley Borough Council,http://statistics.data.gov.uk/id/local-authority/30UE,Capital,Capital,Customer & Digital,Equipment,03014,Capital Expenditure,Capital,Grey 240 litre wheeled bin with Chorley logo. Including RFID chip,31/05/2017,0121024,"11,603.20",Capital,MGB Plastics Ltd,18624,,
Chorley Borough Council,http://statistics.data.gov.uk/id/local-authority/30UE,Capital,Capital,Customer & Digital,Equipment,03014,Capital Expenditure,Capital,Grey 240 litre wheeled bin with Chorley logo. Including RFID chip,31/05/2017,0121025,"11,603.20",Capital,MGB Plastics Ltd,18624,,
Chorley Borough Council,http://statistics.data.gov.uk/id/local-authority/30UE,Capital,Capital,Customer & Digital,Equipment,03014,Capital Expenditure,Capital,Grey 240 litre wheeled bin with Chorley logo. Including RFID chip,31/05/2017,0121026,"11,603.20",Capital,MGB Plastics Ltd,18624,,
Chorley Borough Council,http://statistics.data.gov.uk/id/local-authority/30UE,Capital,Capital,Customer & Digital,Equipment,03014,Capital Expenditure,Capital,Grey 240 litre wheeled bin with Chorley logo. Including RFID chip,31/05/2017,0121027,"11,603.20",Capital,MGB Plastics Ltd,18624,,
Chorley Borough Council,http://statistics.data.gov.uk/id/local-authority/30UE,Capital,Capital,Customer & Digital,Equipment,03014,Capital Expenditure,Capital,Grey 240 litre wheeled bin with Chorley logo. Including RFID chip,31/05/2017,0121356,"11,603.20",Capital,MGB Plastics Ltd,18624,,
Chorley Borough Council,http://statistics.data.gov.uk/id/local-authority/30UE,Capital,Capital,Customer & Digital,Equipment,03014,Capital Expenditure,Capital,Grey 240 litre wheeled bin with Chorley logo. Including RFID chip,31/05/2017,0121357,"11,603.20",Capital,MGB Plastics Ltd,18624,,
Chorley Borough Council,http://statistics.data.gov.uk/id/local-authority/30UE,Capital,Capital,Customer & Digital,Equipment,03014,Capital Expenditure,Capital,Grey 240 litre wheeled bin with Chorley logo. Including RFID chip,31/05/2017,0121358,"4,972.80",Capital,MGB Plastics Ltd,18624,,
Chorley Borough Council,http://statistics.data.gov.uk/id/local-authority/30UE,Capital,Capital,Customer & Digital,Equipment,03014,Capital Expenditure,Capital,Grey 140 litre wheeled bin with Chorley logo. Including RFID chip,31/05/2017,0121359,"5,800.00",Capital,MGB Plastics Ltd,18624,,
Chorley Borough Council,http://statistics.data.gov.uk/id/local-authority/30UE,Unapportionable Central OHeads,1009,Policy & Governance,Uniforms,40039,"Clothing, Uniforms and Laundry",5025,Wool Panama Mayoral Robe with Black Velvet and Fake Fur. Length: 3ft 10 inches @ 970.00 Bib Jabot @ 119.00 Wedge,17/05/2017,0121214,"1,179.00",Revenue,Michaels Civic Robes,76606,,
Chorley Borough Council,http://statistics.data.gov.uk/id/local-authority/30UE,Service Management & Support,1009,Customer & Digital,Supplies-Grounds Maintenance,40025,"Equipment, Furniture & Materia",5023,Please supply street name plates as per quote received from NAME REDACTED dated Tue 25/04/2017 09:12.,17/05/2017,0121218,836.70,Revenue,Midland Signs (Leicester) Ltd,16606,,
Chorley Borough Council,http://statistics.data.gov.uk/id/local-authority/30UE,Homelessness,1075,Early Intervention,Rental Bond Scheme,40241,Miscellaneous Expenses,5034,claim,19/05/2017,0121290,550.00,Revenue,NAME REDACTED,76726,,
Chorley Borough Council,http://statistics.data.gov.uk/id/local-authority/30UE,Private Sector HSG Renewal,1073,Early Intervention,External Contractor,40198,Miscellaneous Expenses,5034,ADDRESS REDACTED,12/05/2017,0121077,860.00,Revenue,Mobility Care Services,70841,,
Chorley Borough Council,http://statistics.data.gov.uk/id/local-authority/30UE,Private Sector HSG Renewal,1073,Early Intervention,External Contractor,40198,Miscellaneous Expenses,5034,ADDRESS REDACTED,12/05/2017,0121078,250.00,Revenue,Mobility Care Services,70841,,
Chorley Borough Council,http://statistics.data.gov.uk/id/local-authority/30UE,Private Sector HSG Renewal,1073,Early Intervention,External Contractor,40198,Miscellaneous Expenses,5034,ADDRESS REDACTED,12/05/2017,0121081,250.00,Revenue,Mobility Care Services,70841,,
Chorley Borough Council,http://statistics.data.gov.uk/id/local-authority/30UE,Private Sector HSG Renewal,1073,Early Intervention,External Contractor,40198,Miscellaneous Expenses,5034,ADDRESS REDACTED,12/05/2017,0121082,250.00,Revenue,Mobility Care Services,70841,,
Chorley Borough Council,http://statistics.data.gov.uk/id/local-authority/30UE,Service Management & Support,1009,Customer & Digital,External Contractor,40198,Miscellaneous Expenses,5034,Carryout repairs to damaged drain found whilst investigation. Jet lines and fit new connection drain to ensure water flow adequate. ,17/05/2017,0121120,320.92,Revenue,Mr Andy Hart,72236,,
Chorley Borough Council,http://statistics.data.gov.uk/id/local-authority/30UE,Democratic Represent and  Mgnt,1007,Business Development & Growth,General Repairs - Reactive,20004,Repairs Maintenance & Alts,5005,"Replacement fencing. Remove old fence and dispose, erect new fence and leave site tidy.",31/05/2017,0121546,720.00,Revenue,Mr Andy Hart,72236,,
Chorley Borough Council,http://statistics.data.gov.uk/id/local-authority/30UE,Corporate Management,1008,Policy & Governance,Legal Fees,40171,Miscellaneous Expenses,5034,NAME REDACTED v Chorley Borough Council Brief,19/05/2017,0121011,"1,700.00",Revenue,Mr Jacob Dyer,21575,,
Chorley Borough Council,http://statistics.data.gov.uk/id/local-authority/30UE,Private Sector HSG Renewal,1073,Early Intervention,External Contractor,40198,Miscellaneous Expenses,5034,Provision of Energy Switching Support Service in April 2017,05/05/2017,0120846,817.50,Revenue,Mrs Heather Shaw,65606,,
Chorley Borough Council,http://statistics.data.gov.uk/id/local-authority/30UE,Central Support Services,1009,Customer & Digital,Professional Fees,40063,Services,5027,Botany Bay work on outlet villa,10/05/2017,0120942,"4,750.00",Revenue,Murray Lloyd Associates Ltd,76626,,
Chorley Borough Council,http://statistics.data.gov.uk/id/local-authority/30UE,Service Management & Support,1009,Customer & Digital,Tools & Equipment - Purchase,40003,"Equipment, Furniture & Materia",5023,Carryout service to 20``Allett cutting cylinder cartridge after damage to bottom blade,17/05/2017,0121044,120.00,Revenue,MW Grass Machinery,21616,,
Chorley Borough Council,http://statistics.data.gov.uk/id/local-authority/30UE,Service Management & Support,1009,Customer & Digital,Hire Of Vehicles and Plant,30028,Contrct Hire & Operating Lease,5018,Hire of hand propelled rovator for 2 week period as requested by NAME REDACTED,17/05/2017,0121044,160.00,Revenue,MW Grass Machinery,21616,,
Chorley Borough Council,http://statistics.data.gov.uk/id/local-authority/30UE,Unapportionable Central OHeads,1009,Policy & Governance,Miscellaneous Expenses,40200,Miscellaneous Expenses,5034,2000 X A5 Chorley Grand Prix Booklets,05/05/2017,0120851,300.00,Revenue,N B Colour Print Ltd,17917,,
Chorley Borough Council,http://statistics.data.gov.uk/id/local-authority/30UE,Democratic Represent and  Mgnt,1007,Policy & Governance,Publicity - Advertising,40157,Miscellaneous Expenses,5034,Estimate number 00143584. 5000 copies of A4 Astley Hall broadsheet.,26/05/2017,0121509,450.00,Revenue,N B Colour Print Ltd,17917,,
Chorley Borough Council,http://statistics.data.gov.uk/id/local-authority/30UE,Unapportionable Central OHeads,1009,Policy & Governance,Postages,40082,Communication and Computing,5028,"Quarterly Rental on One NFS330 Franking Machine, Serial Number NE8002360 / DA 1243567448 and One 2kg scale",26/05/2017,0121273,631.50,Revenue,Nationwide Capital Finance Ltd,21739,,
Chorley Borough Council,http://statistics.data.gov.uk/id/local-authority/30UE,Business Support,1095,Business Development & Growth,Grants To Other Organisations,40127,Grants and Subscriptions,5031,grant,12/05/2017,0120869,"2,949.00",Revenue,Nature Trail Nursery Ltd,75666,,
Chorley Borough Council,http://statistics.data.gov.uk/id/local-authority/30UE,Business Support,1095,Business Development & Growth,Refuse Collection,20037,Cleaning and Domestic Supplies,5012,Market Walk Yard 1 - General Waste compacted - 35 Yard roll on/roll off skip from compactor @64.83 exchange estimated 52,12/05/2017,0121175,129.66,Revenue,Neales Waste Management,17583,,
Chorley Borough Council,http://statistics.data.gov.uk/id/local-authority/30UE,Business Support,1095,Business Development & Growth,Refuse Collection,20037,Cleaning and Domestic Supplies,5012,Market Walk Yard 1 general waste compacted - 35 yard roll on/roll off skip from compactor disposal costs per tonne ,12/05/2017,0121175,"1,657.35",Revenue,Neales Waste Management,17583,,
Chorley Borough Council,http://statistics.data.gov.uk/id/local-authority/30UE,Business Support,1095,Business Development & Growth,Refuse Collection,20037,Cleaning and Domestic Supplies,5012,yard 1,12/05/2017,0121190,"2,581.71",Revenue,Neales Waste Management,17583,,
Chorley Borough Council,http://statistics.data.gov.uk/id/local-authority/30UE,Business Support,1095,Business Development & Growth,Refuse Collection,20037,Cleaning and Domestic Supplies,5012,yard 2,12/05/2017,0121191,375.00,Revenue,Neales Waste Management,17583,,
Chorley Borough Council,http://statistics.data.gov.uk/id/local-authority/30UE,Business Support,1095,Business Development & Growth,Refuse Collection,20037,Cleaning and Domestic Supplies,5012,yard 3,12/05/2017,0121192,900.00,Revenue,Neales Waste Management,17583,,
Chorley Borough Council,http://statistics.data.gov.uk/id/local-authority/30UE,Unapportionable Central OHeads,1009,Customer & Digital,Refuse Collection,20037,Cleaning and Domestic Supplies,5012,town hall,17/05/2017,0121193,271.60,Revenue,Neales Waste Management,17583,,
Chorley Borough Council,http://statistics.data.gov.uk/id/local-authority/30UE,Unapportionable Central OHeads,1009,Customer & Digital,Refuse Collection,20037,Cleaning and Domestic Supplies,5012,union street,17/05/2017,0121198,271.60,Revenue,Neales Waste Management,17583,,
Chorley Borough Council,http://statistics.data.gov.uk/id/local-authority/30UE,Central Support Services,1009,Early Intervention,Miscellaneous Expenses,40200,Miscellaneous Expenses,5034,"Skip Days 04/03/17 � Buckshaw  2 skips (369.24) 07/03/17 � Hallgate, Astley Village  2 skips (1230.03) 11/03/17 �",26/05/2017,0121360,408.39,Revenue,Neales Waste Management,17583,,
Chorley Borough Council,http://statistics.data.gov.uk/id/local-authority/30UE,Central Support Services,1009,Early Intervention,Miscellaneous Expenses,40200,Miscellaneous Expenses,5034,"Skip Days 04/03/17 � Buckshaw  2 skips (369.24) 07/03/17 � Hallgate, Astley Village  2 skips (1230.03) 11/03/17 �",26/05/2017,0121361,369.24,Revenue,Neales Waste Management,17583,,
Chorley Borough Council,http://statistics.data.gov.uk/id/local-authority/30UE,Central Support Services,1009,Early Intervention,Miscellaneous Expenses,40200,Miscellaneous Expenses,5034,"Skip Days 04/03/17 � Buckshaw  2 skips (369.24) 07/03/17 � Hallgate, Astley Village  2 skips (1230.03) 11/03/17 �",26/05/2017,0121362,"1,230.03",Revenue,Neales Waste Management,17583,,
Chorley Borough Council,http://statistics.data.gov.uk/id/local-authority/30UE,Unapportionable Central OHeads,1009,Policy & Governance,Miscellaneous Expenses,40200,Miscellaneous Expenses,5034,Provision of 2 Neutral Service team cars and personnel for the Chorley Grand Prix 2017.,17/05/2017,0120511,400.00,Revenue,Neutral Service,69769,,
Chorley Borough Council,http://statistics.data.gov.uk/id/local-authority/30UE,Corporate Management,1008,Policy & Governance,Publicity - Advertising,40157,Miscellaneous Expenses,5034,garden waste advert,17/05/2017,0120856,267.72,Revenue,Newsquest (Lancashire) Limited,18117,,
Chorley Borough Council,http://statistics.data.gov.uk/id/local-authority/30UE,Unapportionable Central OHeads,1009,Chief Executive,Stationery,40050,"Printing, Stationery & General",5026,Newspapers supplied to Union Street January 17 - March17,26/05/2017,0121188,511.15,Revenue,Nooze `n` Booze,19382,,
Chorley Borough Council,http://statistics.data.gov.uk/id/local-authority/30UE,Service Management & Support,1009,Customer & Digital,Vehicle Maintenance,30045,Direct Transport Costs,5016,Supply belly brush for Johnston VT651 Delivered to Bengal St depot,19/05/2017,0121324,59.63,Revenue,Northern Municipal Spares Ltd,17752,,
Chorley Borough Council,http://statistics.data.gov.uk/id/local-authority/30UE,Service Management & Support,1009,Customer & Digital,Vehicle Maintenance,30045,Direct Transport Costs,5016,Supply poly brushes for Schmidt Swingo 200 delivered to Bengal St depot,19/05/2017,0121324,278.82,Revenue,Northern Municipal Spares Ltd,17752,,
Chorley Borough Council,http://statistics.data.gov.uk/id/local-authority/30UE,Service Management & Support,1009,Customer & Digital,Vehicle Maintenance,30045,Direct Transport Costs,5016,Supply polly wire brush for Schmidt Swingo 200 delivered to Bengal St depot,19/05/2017,0121324,416.70,Revenue,Northern Municipal Spares Ltd,17752,,
Chorley Borough Council,http://statistics.data.gov.uk/id/local-authority/30UE,Service Management & Support,1009,Customer & Digital,Vehicle Maintenance,30045,Direct Transport Costs,5016,Supply channel brushes for Johnston VT651 delivered to Bengal St depot,19/05/2017,0121324,356.93,Revenue,Northern Municipal Spares Ltd,17752,,
Chorley Borough Council,http://statistics.data.gov.uk/id/local-authority/30UE,Service Management & Support,1009,Customer & Digital,Hire Of Vehicles and Plant,30028,Contrct Hire & Operating Lease,5018,extra charges,10/05/2017,0117715,300.30,Revenue,Northgate Vehicle Hire (NW) Ltd,17360,,
Chorley Borough Council,http://statistics.data.gov.uk/id/local-authority/30UE,Unapportionable Central OHeads,1009,Policy & Governance,Miscellaneous Expenses,40200,Miscellaneous Expenses,5034,Provision of portable toilets for the Chorley Grand Prix,17/05/2017,0120599,535.00,Revenue,Northwest Portables,74432,,
Chorley Borough Council,http://statistics.data.gov.uk/id/local-authority/30UE,Business Support,1095,Business Development & Growth,Electricity,20013,Energy Costs,5006,market walk,12/05/2017,0120981,"3,377.57",Revenue,Npower Commercial Gas,16814,,
Chorley Borough Council,http://statistics.data.gov.uk/id/local-authority/30UE,Parking Services,1066,Business Development & Growth,External Contractors,50008,Private Contractors,5042,Mar-17,03/05/2017,0120823,"4,169.09",Revenue,NSL Limited,67253,,
Chorley Borough Council,http://statistics.data.gov.uk/id/local-authority/30UE,Parking Services,1066,Business Development & Growth,External Contractors,50008,Private Contractors,5042,"Provision of off street car park enforcement, cash collection, cash  counting facilities and third party bulk cash collections ",05/05/2017,0120850,"3,426.35",Revenue,NSL Limited,67253,,
Chorley Borough Council,http://statistics.data.gov.uk/id/local-authority/30UE,Parking Services,1066,Business Development & Growth,External Contractors,50008,Private Contractors,5042,"Provision of off street car park enforcement, cash collection, cash  counting facilities and third party bulk cash collections ",12/05/2017,0121017,"3,426.35",Revenue,NSL Limited,67253,,
Chorley Borough Council,http://statistics.data.gov.uk/id/local-authority/30UE,Democratic Represent and  Mgnt,1007,Customer & Digital,Supplies-Grounds Maintenance,40025,"Equipment, Furniture & Materia",5023,1 x wooden hexagon planter 6ft x 5ft x 2ft,26/05/2017,0121464,895.00,Revenue,Nuchoice Limited,75454,,
Chorley Borough Council,http://statistics.data.gov.uk/id/local-authority/30UE,Democratic Represent and  Mgnt,1007,Policy & Governance,General Subscriptions,40146,Grants and Subscriptions,5031,17/18,19/05/2017,0121337,"4,146.86",Revenue,Nwlaeo,17571,,
Chorley Borough Council,http://statistics.data.gov.uk/id/local-authority/30UE,Homelessness,1075,Early Intervention,Furniture - Purchase,40012,"Equipment, Furniture & Materia",5023,Concertina 4 Panel Mobile Display and Room Dividers - 1800mm (H) - Grey,26/05/2017,0121393,562.00,Revenue,Office Furniture Online,60744,,
Chorley Borough Council,http://statistics.data.gov.uk/id/local-authority/30UE,Central Support Services,1009,Early Intervention,Miscellaneous Expenses,40200,Miscellaneous Expenses,5034,M73 / SWB17 -  ADDRESSES REDACTED 1 x - lock case c/w faceplate - 39.50 2 x - cylinders are 55.30each  20 x - keys ,26/05/2017,0121397,260.10,Revenue,Olympic Lock & Safeguards Ltd,17739,,
Chorley Borough Council,http://statistics.data.gov.uk/id/local-authority/30UE,Business Support,1095,Business Development & Growth,Electricity,20013,Energy Costs,5006,hss hire,10/05/2017,0120973,"1,434.49",Revenue,Opus Energy Ltd,65093,,
Chorley Borough Council,http://statistics.data.gov.uk/id/local-authority/30UE,Business Support,1095,Business Development & Growth,Electricity,20013,Energy Costs,5006,ADDRESS REDACTED,17/05/2017,0121116,321.37,Revenue,Opus Energy Ltd,65093,,
Chorley Borough Council,http://statistics.data.gov.uk/id/local-authority/30UE,Central Support Services,1009,Customer & Digital,Computer Software-Maintenance,40107,Communication and Computing,5028,FULL USE - Oracle Database Standard Edition One - Processor Perpetual 1/4/2017 - 31/3/2018,19/05/2017,0120388,"1,397.79",Revenue,Oracle Corporation UK Ltd,61786,,
Chorley Borough Council,http://statistics.data.gov.uk/id/local-authority/30UE,Capital,Capital,Early Intervention,Main Contractor,03007,Capital Expenditure,Capital,Phase 6 Works at Cotswold,26/05/2017,0120549,"70,208.87",Capital,P J Services (Bolton) Ltd,62962,,
Chorley Borough Council,http://statistics.data.gov.uk/id/local-authority/30UE,Capital,Capital,Early Intervention,Main Contractor,03007,Capital Expenditure,Capital,Phase 6 Works at Cotswold,26/05/2017,0120550,"19,894.06",Capital,P J Services (Bolton) Ltd,62962,,
Chorley Borough Council,http://statistics.data.gov.uk/id/local-authority/30UE,Capital,Capital,Early Intervention,Main Contractor,03007,Capital Expenditure,Capital,Phase 6 Works at Cotswold,24/05/2017,0121388,"57,059.26",Capital,P J Services (Bolton) Ltd,62962,,
Chorley Borough Council,http://statistics.data.gov.uk/id/local-authority/30UE,Parking Services,1066,Business Development & Growth,Tools & Equipment - Purchase,40003,"Equipment, Furniture & Materia",5023,As per quote reference PS/37/0406 dated 24.04.17 supply the following: x9 3G Modem`s for existing machines @ 500 each,10/05/2017,0120922,"2,720.00",Revenue,Parkeon Ltd,16279,,
Chorley Borough Council,http://statistics.data.gov.uk/id/local-authority/30UE,Capital,Capital,Business Development & Growth,Equipment,03014,Capital Expenditure,Capital,As per quotation: Strada `Transfer` Pay & Display Machines SA-2017-2702-SS-Chorley Council (ESPO 509) provide x 7 Solar,26/05/2017,0121508,"21,686.00",Capital,Parkeon Ltd,16279,,
Chorley Borough Council,http://statistics.data.gov.uk/id/local-authority/30UE,Capital,Capital,Business Development & Growth,Equipment,03014,Capital Expenditure,Capital,"x 3 Mains Powered Strada Transfer COIN ONLY, collection system by transfer canister (one per machine included) in any standa",26/05/2017,0121508,"9,927.00",Capital,Parkeon Ltd,16279,,
Chorley Borough Council,http://statistics.data.gov.uk/id/local-authority/30UE,Capital,Capital,Business Development & Growth,Equipment,03014,Capital Expenditure,Capital,x 10 Installation of Strada machine by Parkeon nominated CHAS registered sub-contractor. Price based on 10 machines installed ,26/05/2017,0121508,"4,950.00",Capital,Parkeon Ltd,16279,,
Chorley Borough Council,http://statistics.data.gov.uk/id/local-authority/30UE,Capital,Capital,Business Development & Growth,Equipment,03014,Capital Expenditure,Capital,Commissioning of 10 machines as described in ESPO 509 as `Installation of Machine. To a base which has been prepared ,26/05/2017,0121508,550.00,Capital,Parkeon Ltd,16279,,
Chorley Borough Council,http://statistics.data.gov.uk/id/local-authority/30UE,Capital,Capital,Business Development & Growth,Other Capital Related Fees,03024,Capital Expenditure,Capital,Primrose Gardens April 2017,03/05/2017,0120803,"4,522.32",Capital,Perfect Circle JV Ltd,76438,,
Chorley Borough Council,http://statistics.data.gov.uk/id/local-authority/30UE,Capital,Capital,Business Development & Growth,Other Capital Related Fees,03024,Capital Expenditure,Capital,Primrose Gardens April 2017,03/05/2017,0120818,"3,121.38",Capital,Perfect Circle JV Ltd,76438,,
Chorley Borough Council,http://statistics.data.gov.uk/id/local-authority/30UE,Democratic Represent and  Mgnt,1007,Policy & Governance,Performing Rights Society Fees,40148,Grants and Subscriptions,5031,Fees for period 6th January to 5th April 2017.,03/05/2017,0120802,531.63,Revenue,Performing Right Society Ltd,19909,,
Chorley Borough Council,http://statistics.data.gov.uk/id/local-authority/30UE,Service Management & Support,1009,Customer & Digital,Supplies-Grounds Maintenance,40025,"Equipment, Furniture & Materia",5023,"6 - 2litre Hydrangers 20 Peace Lillies 40 Begonia ( White) 24 Boston Ferns 36 ivy",26/05/2017,0121414,336.00,Revenue,Peter H Smith Limited,17088,,
Chorley Borough Council,http://statistics.data.gov.uk/id/local-authority/30UE,Central Support Services,1009,Early Intervention,External Contractor,40198,Miscellaneous Expenses,5034,Pest Control Duties within Chorley Council,05/05/2017,0120775,255.00,Revenue,Peter L Johnson,16727,,
Chorley Borough Council,http://statistics.data.gov.uk/id/local-authority/30UE,Central Support Services,1009,Early Intervention,External Contractor,40198,Miscellaneous Expenses,5034,Pest Control Duties within Chorley Council,12/05/2017,0121050,340.00,Revenue,Peter L Johnson,16727,,
Chorley Borough Council,http://statistics.data.gov.uk/id/local-authority/30UE,Central Support Services,1009,Early Intervention,External Contractor,40198,Miscellaneous Expenses,5034,Pest Control Duties within Chorley Council,12/05/2017,0121051,255.00,Revenue,Peter L Johnson,16727,,
Chorley Borough Council,http://statistics.data.gov.uk/id/local-authority/30UE,Central Support Services,1009,Early Intervention,External Contractor,40198,Miscellaneous Expenses,5034,Pest Control Duties within Chorley Council,26/05/2017,0121363,340.00,Revenue,Peter L Johnson,16727,,
Chorley Borough Council,http://statistics.data.gov.uk/id/local-authority/30UE,Central Support Services,1009,Early Intervention,External Contractor,40198,Miscellaneous Expenses,5034,Pest Control Duties within Chorley Council,26/05/2017,0121507,340.00,Revenue,Peter L Johnson,16727,,
Chorley Borough Council,http://statistics.data.gov.uk/id/local-authority/30UE,Economic Development,1096,Business Development & Growth,Performing Rights Society Fees,40148,Grants and Subscriptions,5031,"To supply a PPL licence to Chorley   Covered Market, Customer no: 4973591  PPL licence to authorise the public performance",10/05/2017,0120909,455.68,Revenue,Phonographic Performance Limited,21456,,
Chorley Borough Council,http://statistics.data.gov.uk/id/local-authority/30UE,Economic Development,1096,Business Development & Growth,Performing Rights Society Fees,40148,Grants and Subscriptions,5031,As per quote ref: 3421420 Market Walk Shopping Centre. Account No: 454145  Fees payable for a licence to authorise the public,26/05/2017,0121491,271.36,Revenue,Phonographic Performance Limited,21456,,
Chorley Borough Council,http://statistics.data.gov.uk/id/local-authority/30UE,Capital,Capital,Customer & Digital,Consultants Fees,03025,Capital Expenditure,Capital,"Quantity surveying services for market walk - 43,056 over an 18 month period",12/05/2017,0120792,"2,704.00",Capital,Pick Everard,76515,,
Chorley Borough Council,http://statistics.data.gov.uk/id/local-authority/30UE,Capital,Capital,Customer & Digital,Consultants Fees,03025,Capital Expenditure,Capital,"Project management services for market walk - 111,384 over an 18 month period",12/05/2017,0120793,"5,408.00",Capital,Pick Everard,76515,,
Chorley Borough Council,http://statistics.data.gov.uk/id/local-authority/30UE,Corporate Management,1008,Customer & Digital,Printing,40043,"Printing, Stationery & General",5026,"Printing, personalisation of garden waste letter and sticker, full colour both sides enclosed in printed envelope as your quotation ",17/05/2017,0120947,"8,530.00",Revenue,Pioneer Print Solutions,76681,,
Chorley Borough Council,http://statistics.data.gov.uk/id/local-authority/30UE,Corporate Management,1008,Customer & Digital,Printing,40043,"Printing, Stationery & General",5026,Print plates and bespoke cutter,17/05/2017,0120947,460.00,Revenue,Pioneer Print Solutions,76681,,
Chorley Borough Council,http://statistics.data.gov.uk/id/local-authority/30UE,Corporate Management,1008,Customer & Digital,Printing,40043,"Printing, Stationery & General",5026,Printing and personalisation of garden waste letters to SRBC properties as detailed in e-mail of 12 April 2017 NAME REDACTED,17/05/2017,0120948,484.00,Revenue,Pioneer Print Solutions,76681,,
Chorley Borough Council,http://statistics.data.gov.uk/id/local-authority/30UE,Corporate Management,1008,Customer & Digital,Printing,40043,"Printing, Stationery & General",5026,Supply and print 1400 letters and stickers for garden waste collections as Dave Shaw`s e-mail of 11 May 2017,26/05/2017,0121254,698.00,Revenue,Pioneer Print Solutions,76681,,
Chorley Borough Council,http://statistics.data.gov.uk/id/local-authority/30UE,Corporate Management,1008,Customer & Digital,Postages,40082,Communication and Computing,5028,Postage costs for 1400 letters,26/05/2017,0121254,560.00,Revenue,Pioneer Print Solutions,76681,,
Chorley Borough Council,http://statistics.data.gov.uk/id/local-authority/30UE,Central Support Services,1009,Early Intervention,Other Contributions,40145,Grants and Subscriptions,5031,Contribution to PCSO Provision in Chorley - Neighbourhood Policing and Early Action - Payable in 4 equal quarterly payments,26/05/2017,0120821,"74,250.00",Revenue,Police & Crime Commissioner,17548,,
Chorley Borough Council,http://statistics.data.gov.uk/id/local-authority/30UE,Precepts and Collection Fund,Precepts,Policy & Governance,LPA Precept,02010,Precepts & Collection Fund,Precept,ctax,26/05/2017,0121293,"601,246.00",Revenue,Police & Crime Commissioner,17438,,
Chorley Borough Council,http://statistics.data.gov.uk/id/local-authority/30UE,Recreation & Sport,1037,Early Intervention,Miscellaneous Expenses,40200,Miscellaneous Expenses,5034,"Lancaster Way Community Centre (Buckshaw) Three signs from artwork supplied; manufacture, supply and install",12/05/2017,0119609,"1,007.10",Revenue,Poppy Signs Ltd,21898,,
Chorley Borough Council,http://statistics.data.gov.uk/id/local-authority/30UE,Parking Services,1066,Business Development & Growth,Signs:Provision & Maintenance,20065,Grounds Maintenance Costs,5013,51 signs total  20 x A2 (with pre-drilled holes top and bottom) 30 x A3 (with pre-drilled holes top and bottom) 1 1700mm x 500mm,03/05/2017,0120819,517.51,Revenue,Poppy Signs Ltd,21898,,
Chorley Borough Council,http://statistics.data.gov.uk/id/local-authority/30UE,Parking Services,1066,Business Development & Growth,Signs:Provision & Maintenance,20065,Grounds Maintenance Costs,5013,ref 8762/1 for Flat Iron Full coverage new stickers Batch of 4 The locations are: Outside MW office Facing A6 Shepherds Way Cen,05/05/2017,0120849,782.15,Revenue,Poppy Signs Ltd,21898,,
Chorley Borough Council,http://statistics.data.gov.uk/id/local-authority/30UE,Capital,Capital,Customer & Digital,Consultants Fees,03025,Capital Expenditure,Capital,Market Walk Hoardings,26/05/2017,0120945,"4,000.00",Capital,Poppy Signs Ltd,21898,,
Chorley Borough Council,http://statistics.data.gov.uk/id/local-authority/30UE,Parking Services,1066,Business Development & Growth,Signs:Provision & Maintenance,20065,Grounds Maintenance Costs,5013,"As per quote ref: REF8804-1 Tariff notices 14 signs total 900mm x 300mm 10mm correx, digitally printed Free delivery",12/05/2017,0121021,136.42,Revenue,Poppy Signs Ltd,21898,,
Chorley Borough Council,http://statistics.data.gov.uk/id/local-authority/30UE,Parking Services,1066,Business Development & Growth,Signs:Provision & Maintenance,20065,Grounds Maintenance Costs,5013,"B 1 Unit(s) Access Traders 4 signs total A1, drilled holes 10mm correx, digitally printed Free delivery",12/05/2017,0121021,125.53,Revenue,Poppy Signs Ltd,21898,,
Chorley Borough Council,http://statistics.data.gov.uk/id/local-authority/30UE,Capital,Capital,Business Development & Growth,Other Contractor,03012,Capital Expenditure,Capital,"Batch of 4 mesh banners - size, style and finish as per the Flat Iron banners Including manufacture and installation",24/05/2017,0121334,612.75,Capital,Poppy Signs Ltd,21898,,
Chorley Borough Council,http://statistics.data.gov.uk/id/local-authority/30UE,Parking Services,1066,Business Development & Growth,Signs:Provision & Maintenance,20065,Grounds Maintenance Costs,5013,As per quote reference: REF8850/2 Full coverage new stickers - Batch of 4 Hollinshead Street * 1 (install first Fleet Street ,19/05/2017,0121335,631.01,Revenue,Poppy Signs Ltd,21898,,
Chorley Borough Council,http://statistics.data.gov.uk/id/local-authority/30UE,Parking Services,1066,Business Development & Growth,Signs:Provision & Maintenance,20065,Grounds Maintenance Costs,5013,Full coverage new stickers - Batch 11 Portland St * 2 Farrington St * 1 West St * 2 Queens Rd 1 Water St 2 St Marys 1 Friday St,19/05/2017,0121335,"1,644.33",Revenue,Poppy Signs Ltd,21898,,
Chorley Borough Council,http://statistics.data.gov.uk/id/local-authority/30UE,Parking Services,1066,Business Development & Growth,Miscellaneous Expenses,40200,Miscellaneous Expenses,5034,"1 Unit(s) BATCH OF 2 Regular (not mesh) banner for the fence at Bengal Street Finished size 290cm x 158cm, hemmed and eyel",24/05/2017,0121402,380.13,Revenue,Poppy Signs Ltd,21898,,
Chorley Borough Council,http://statistics.data.gov.uk/id/local-authority/30UE,Elections,1012,Policy & Governance,Rent/Hire Of Premises,20017,Premises Rents,5007,"Hire of 1 x Portakabin Solus 082 building with 2 chairs and 2 tables, 1 x Chemical toilet, retention fee for 1 x Portakabin Pacema",12/05/2017,0120997,"1,377.00",Revenue,Portakabin Limited,51521,,
Chorley Borough Council,http://statistics.data.gov.uk/id/local-authority/30UE,Unapportionable Central OHeads,1009,Policy & Governance,Refreshments,40036,Catering,5024,"Supply, Sanitation, provision of cups and water for all Pressure Coolers for Council Sites for the month of June 2017",24/05/2017,0121053,348.60,Revenue,Pressure Coolers Ltd T/A Maestro International Ltd,19767,,
Chorley Borough Council,http://statistics.data.gov.uk/id/local-authority/30UE,Unapportionable Central OHeads,1009,Policy & Governance,Refreshments,40036,Catering,5024,"Supply, Sanitation, provision of cups and water for all Pressure Coolers for Council Sites for the month of May 2017",24/05/2017,0121394,584.40,Revenue,Pressure Coolers Ltd T/A Maestro International Ltd,19767,,
Chorley Borough Council,http://statistics.data.gov.uk/id/local-authority/30UE,Private Sector HSG Renewal,1073,Early Intervention,External Contractor,40198,Miscellaneous Expenses,5034,Provision of Handyperson services (funded by LCC IHIS service) Q1 2017/18 covering the period 1.4.17 to 30.6.17,12/05/2017,0121005,"7,225.00",Revenue,Preston Care and Repair,50018,,
Chorley Borough Council,http://statistics.data.gov.uk/id/local-authority/30UE,Private Sector HSG Renewal,1073,Early Intervention,Miscellaneous Expenses,40200,Miscellaneous Expenses,5034,Provision of Heating System Maintenance funded by LCC Affordable Warmth Fund,26/05/2017,0121427,"1,135.00",Revenue,Preston Care and Repair,50018,,
Chorley Borough Council,http://statistics.data.gov.uk/id/local-authority/30UE,Elections,1012,Policy & Governance,Printing,40043,"Printing, Stationery & General",5026,27000 postal vote packs for LCC elections,12/05/2017,0121012,"14,490.31",Revenue,Print Image Network,21171,,
Chorley Borough Council,http://statistics.data.gov.uk/id/local-authority/30UE,Elections,1012,Policy & Governance,Printing,40043,"Printing, Stationery & General",5026,LCC ballot books,12/05/2017,0121129,"5,477.87",Revenue,Print Image Network,21171,,
Chorley Borough Council,http://statistics.data.gov.uk/id/local-authority/30UE,Elections,1012,Policy & Governance,Printing,40043,"Printing, Stationery & General",5026,poll cards for parliamentary election,31/05/2017,0121533,"6,686.90",Revenue,Print Image Network,21171,,
Chorley Borough Council,http://statistics.data.gov.uk/id/local-authority/30UE,Other Short Term Creditors,,Policy & Governance,General Balances,00100,Balance Sheet,Balance,sal ded,26/05/2017,0121305,"2,671.83",Revenue,PRUDENTIAL,18178,,
Chorley Borough Council,http://statistics.data.gov.uk/id/local-authority/30UE,Corporate Management,1008,Customer & Digital,General Repairs - Reactive,20004,Repairs Maintenance & Alts,5005,Remove and re-fix headstones for a funeral,17/05/2017,0121000,465.00,Revenue,Rawcliffe`s Of Chorley Ltd,17993,,
Chorley Borough Council,http://statistics.data.gov.uk/id/local-authority/30UE,Community Development,1097,Policy & Governance,Core Funding Grants,40133,Grants and Subscriptions,5031,funding,10/05/2017,0120867,250.00,Revenue,Red Admiral Music Academy,76675,,
Chorley Borough Council,http://statistics.data.gov.uk/id/local-authority/30UE,Unapportionable Central OHeads,1009,Policy & Governance,Disposal Of Records,40055,"Printing, Stationery & General",5026,On site destruction of Confidential waste Feb 2017,26/05/2017,0121487,700.00,Revenue,Restore Datashred,16853,,
Chorley Borough Council,http://statistics.data.gov.uk/id/local-authority/30UE,Control Accounts,Control,Policy & Governance,General Balances,00100,Balance Sheet,Balance,childcare vouchers,26/05/2017,0120241,"5,332.64",Revenue,Reward Gateway (UK) Ltd,66814,,
Chorley Borough Council,http://statistics.data.gov.uk/id/local-authority/30UE,Control Accounts,Control,Policy & Governance,General Balances,00100,Balance Sheet,Balance,childcare vouchers,26/05/2017,0120976,"5,099.64",Revenue,Reward Gateway (UK) Ltd,66814,,
Chorley Borough Council,http://statistics.data.gov.uk/id/local-authority/30UE,Non Domestic Rates Redistribut,,Policy & Governance,Tariff to Business Rates Pool,49002,Expenditure not in NCOS,,bus rates pool,26/05/2017,0121294,"558,283.00",Revenue,Ribble Valley Borough Council,21100,,
Chorley Borough Council,http://statistics.data.gov.uk/id/local-authority/30UE,Development Control,1091,Business Development & Growth,General Subscriptions,40146,Grants and Subscriptions,5031,BCIS Online subscription - 12 months subscription from 1 June 2017,12/05/2017,0121023,"1,866.00",Revenue,RICS Business Services Ltd,17439,,
Chorley Borough Council,http://statistics.data.gov.uk/id/local-authority/30UE,Community Development,1097,Policy & Governance,Core Funding Grants,40133,Grants and Subscriptions,5031,funding,10/05/2017,0120868,498.00,Revenue,Rivington Heritage Trust,76678,,
Chorley Borough Council,http://statistics.data.gov.uk/id/local-authority/30UE,Unapportionable Central OHeads,1009,Customer & Digital,Miscellaneous Expenses,40200,Miscellaneous Expenses,5034,Traffic Management services for Chorley GP 2017,03/05/2017,0120776,"8,030.00",Revenue,Road Safety Services Ltd,69457,,
Chorley Borough Council,http://statistics.data.gov.uk/id/local-authority/30UE,Elections,1012,Policy & Governance,Postages,40082,Communication and Computing,5028,First batch of postal votes mailing for Lancashire county Council Elections,03/05/2017,0120729,"10,412.14",Revenue,Royal Mail Group Plc,17522,,
Chorley Borough Council,http://statistics.data.gov.uk/id/local-authority/30UE,Elections,1012,Policy & Governance,Postages,40082,Communication and Computing,5028,postal vote returns for LCC election RXAE-GAEJ-REXJ,12/05/2017,0121003,"1,505.42",Revenue,Royal Mail Group Plc,17522,,
Chorley Borough Council,http://statistics.data.gov.uk/id/local-authority/30UE,Elections,1012,Policy & Governance,Postages,40082,Communication and Computing,5028,postal vote returns for LCC election RXAE-GAEJ-REXJ,17/05/2017,0121215,"3,540.50",Revenue,Royal Mail Group Plc,17522,,
Chorley Borough Council,http://statistics.data.gov.uk/id/local-authority/30UE,Service Management & Support,1009,Customer & Digital,Vehicle Maintenance,30045,Direct Transport Costs,5016,Supply and fit new wing mirror as requested on Vauxhall Movano 3.5tonne pickup,05/05/2017,0120832,294.50,Revenue,Sam Bird Motorbodies,20116,,
Chorley Borough Council,http://statistics.data.gov.uk/id/local-authority/30UE,Service Management & Support,1009,Customer & Digital,Vehicle Maintenance,30045,Direct Transport Costs,5016,Supply rear number plates as requested for Tractor trailers,05/05/2017,0120832,22.00,Revenue,Sam Bird Motorbodies,20116,,
Chorley Borough Council,http://statistics.data.gov.uk/id/local-authority/30UE,Homelessness,1075,Early Intervention,External Contractor,40198,Miscellaneous Expenses,5034,"Concierge Service at Cotswold Supported Housing, Cotswold Road, Chorley, PR7 3HW. for the period of April 17 to March 18",12/05/2017,0120944,"2,396.80",Revenue,Sector Security Services,19269,,
Chorley Borough Council,http://statistics.data.gov.uk/id/local-authority/30UE,Homelessness,1075,Early Intervention,External Contractor,40198,Miscellaneous Expenses,5034,"For Concierge Service at Cotswold Supported Housing, Cotswold Road, Chorley, PR7 3HW.  period of April 17 to March 18",26/05/2017,0121426,"2,337.95",Revenue,Sector Security Services,19269,,
Chorley Borough Council,http://statistics.data.gov.uk/id/local-authority/30UE,Business Support,1095,Business Development & Growth,Security Service,40062,Services,5027,security services to Market Walk Shopping Centre from April 2017 to March 2018. @5809.40 per month - Contract No. 754775,26/05/2017,0121459,"5,809.40",Revenue,Securitas Security Services (UK) Ltd,70693,,
Chorley Borough Council,http://statistics.data.gov.uk/id/local-authority/30UE,Business Support,1095,Business Development & Growth,Grants To Other Organisations,40127,Grants and Subscriptions,5031,grant 1st phase,10/05/2017,0120716,"4,000.00",Revenue,Sharples Davies Ltd,76698,,
Chorley Borough Council,http://statistics.data.gov.uk/id/local-authority/30UE,Elections,1012,Policy & Governance,Stationery,40050,"Printing, Stationery & General",5026,POLLING STATION GUIDANCE FOR VOTERS - VOTE FOR ONE CANDIDATE LE6   X 175 POLLING STATION VOTING,26/05/2017,0121366,291.37,Revenue,Shaw & Sons Ltd,18092,,
Chorley Borough Council,http://statistics.data.gov.uk/id/local-authority/30UE,Elections,1012,Policy & Governance,Stationery,40050,"Printing, Stationery & General",5026,PO sundries refill packs   90 @ 13.92,26/05/2017,0121447,"1,252.80",Revenue,Shaw & Sons Ltd,18092,,
Chorley Borough Council,http://statistics.data.gov.uk/id/local-authority/30UE,Capital,Capital,Business Development & Growth,Main Contractor,03007,Capital Expenditure,Capital,Line marking at Union Street and Bengal Street,05/05/2017,0120425,750.00,Capital,Shiloh Surfacing,61457,,
Chorley Borough Council,http://statistics.data.gov.uk/id/local-authority/30UE,Unapportionable Central OHeads,1009,Policy & Governance,Miscellaneous Expenses,40200,Miscellaneous Expenses,5034,Film and produce a promotional video to encourage visitors to Chorley as part of the check out Chorley campaign,17/05/2017,0120627,850.00,Revenue,SkyOptics Ltd,76623,,
Chorley Borough Council,http://statistics.data.gov.uk/id/local-authority/30UE,Service Management & Support,1009,Customer & Digital,Vehicle Maintenance,30045,Direct Transport Costs,5016,Complete welding repairs to Schmidt Sweeper AE14 AXW,26/05/2017,0121428,520.00,Revenue,SM Sheet Metal Ltd,21243,,
Chorley Borough Council,http://statistics.data.gov.uk/id/local-authority/30UE,Central Support Services,1009,Customer & Digital,IT Software - Annual Licences,40101,Communication and Computing,5028,Year 3 of 3 - Microsoft ESA agreement.,17/05/2017,0121136,"62,120.66",Revenue,Softcat Ltd,69996,,
Chorley Borough Council,http://statistics.data.gov.uk/id/local-authority/30UE,Central Support Services,1009,Customer & Digital,Consultants` Fees,40077,Services,5027,"Consultancy to assist in replacement of data centre infrastructure - SAN, servers and network (core and edge)",19/05/2017,0118008,"5,000.00",Revenue,Specialist Computer Centres PLC,21039,,
Chorley Borough Council,http://statistics.data.gov.uk/id/local-authority/30UE,Corporate Management,1008,Policy & Governance,Rent/Hire Of Premises,20017,Premises Rents,5007,Payment for Commission (part 2) for Public Service Reform,12/05/2017,0121124,"40,000.00",Revenue,Spice Innovations Ltd,61318,,
Chorley Borough Council,http://statistics.data.gov.uk/id/local-authority/30UE,Unapportionable Central OHeads,1009,Policy & Governance,Mayoral Hospitality,40123,Expenses,5030,"Buffet for 50 people on Tuesday 16th May 2017 @ 10 per head. To be delivered to Committee Room 1 in the Town Hall, ",19/05/2017,0121323,600.00,Revenue,St Catherines Social Enterprise Ltd,76345,,
Chorley Borough Council,http://statistics.data.gov.uk/id/local-authority/30UE,Corporate Management,1008,Policy & Governance,Other Contributions,40145,Grants and Subscriptions,5031,Provision of temporary 7C bus service extended period,24/05/2017,0121266,"9,252.44",Revenue,Stagecoach Services Limited,18598,,
Chorley Borough Council,http://statistics.data.gov.uk/id/local-authority/30UE,Corporate Management,1008,Policy & Governance,Other Contributions,40145,Grants and Subscriptions,5031,Provision of temporary 7C bus service extended period,24/05/2017,0121267,"8,461.22",Revenue,Stagecoach Services Limited,18598,,
Chorley Borough Council,http://statistics.data.gov.uk/id/local-authority/30UE,Central Support Services,1009,Customer & Digital,Computer Equipment-Maintenance,40105,Communication and Computing,5028,Renewal of contract 22408 - 01/04/17 to 31/03/18,17/05/2017,0121123,"20,498.40",Revenue,Starcom Technologies Limited,20541,,
Chorley Borough Council,http://statistics.data.gov.uk/id/local-authority/30UE,Central Support Services,1009,Early Intervention,Training Course Fees,17010,Indirect Employee Expenses,5002,One place at Street Games Conference for NAME REDACTED,03/05/2017,0120820,360.00,Revenue,Street Games UK LTD,22465,,
Chorley Borough Council,http://statistics.data.gov.uk/id/local-authority/30UE,Community Development,1097,Policy & Governance,Core Funding Grants,40133,Grants and Subscriptions,5031,Contract Extension of one month,10/05/2017,0120853,667.00,Revenue,Street Pastors,21946,,
Chorley Borough Council,http://statistics.data.gov.uk/id/local-authority/30UE,Community Development,1097,Policy & Governance,Core Funding Grants,40133,Grants and Subscriptions,5031,Contract for 2017/18 Year One for Commission for Community Safety Service,31/05/2017,0121524,"4,000.00",Revenue,Street Pastors,21946,,
Chorley Borough Council,http://statistics.data.gov.uk/id/local-authority/30UE,Unapportionable Central OHeads,1009,Business Development & Growth,General Repairs - Reactive,20004,Repairs Maintenance & Alts,5005, Reactive Repairs to end of March 2017,24/05/2017,0120672,"1,019.47",Revenue,Stringfellow Bldg Cntrctrs Ltd,17893,,
Chorley Borough Council,http://statistics.data.gov.uk/id/local-authority/30UE,Capital,Capital,Business Development & Growth,Main Contractor,03007,Capital Expenditure,Capital,General building Work At Union Street,10/05/2017,0120852,"39,539.89",Capital,Stringfellow Bldg Cntrctrs Ltd,17893,,
Chorley Borough Council,http://statistics.data.gov.uk/id/local-authority/30UE,Elections,1012,Policy & Governance,Rent/Hire Of Premises,20017,Premises Rents,5007,quote dated 17th March 2017. Election works as agreed by email 1100.00 To supply fit timber made ramp/landing for Balshaw,12/05/2017,0121119,"2,838.60",Revenue,Stringfellow Bldg Cntrctrs Ltd,17893,,
Chorley Borough Council,http://statistics.data.gov.uk/id/local-authority/30UE,Capital,Capital,Early Intervention,Grants,03002,Capital Expenditure,Capital,ADDRESS REDACTED,17/05/2017,0121253,375.00,Capital,Stringfellow Bldg Cntrctrs Ltd,17893,,
Chorley Borough Council,http://statistics.data.gov.uk/id/local-authority/30UE,Unapportionable Central OHeads,1009,Policy & Governance,Mayors Medals,40029,"Equipment, Furniture & Materia",5023,Photography of new Mayor and Mayoress and mounted portraits.,17/05/2017,0121276,420.00,Revenue,Studio Twelve,17895,,
Chorley Borough Council,http://statistics.data.gov.uk/id/local-authority/30UE,Economic Development,1096,Policy & Governance,Cleaning Materials,40019,"Equipment, Furniture & Materia",5023,Janitorial supplies for market toilets,03/05/2017,0120624,503.49,Revenue,Swiftkleen Ltd,17933,,
Chorley Borough Council,http://statistics.data.gov.uk/id/local-authority/30UE,Homelessness,1075,Early Intervention,Cleaning Materials,40019,"Equipment, Furniture & Materia",5023,"Evans Vanodine Everfresh, Perfumed thickened toilet cleaner - 5 litre",12/05/2017,0120919,6.76,Revenue,Swiftkleen Ltd,17933,,
Chorley Borough Council,http://statistics.data.gov.uk/id/local-authority/30UE,Homelessness,1075,Early Intervention,Cleaning Materials,40019,"Equipment, Furniture & Materia",5023,"Atlas Thickened Bleach, 5 Litre",12/05/2017,0120919,3.10,Revenue,Swiftkleen Ltd,17933,,
Chorley Borough Council,http://statistics.data.gov.uk/id/local-authority/30UE,Homelessness,1075,Early Intervention,Cleaning Materials,40019,"Equipment, Furniture & Materia",5023,Exel PY Colour Coded Mop Head,12/05/2017,0120919,11.76,Revenue,Swiftkleen Ltd,17933,,
Chorley Borough Council,http://statistics.data.gov.uk/id/local-authority/30UE,Homelessness,1075,Early Intervention,Cleaning Materials,40019,"Equipment, Furniture & Materia",5023,Black Refuse Sacks 180g (Heavy Duty) pack of 200,12/05/2017,0120919,23.40,Revenue,Swiftkleen Ltd,17933,,
Chorley Borough Council,http://statistics.data.gov.uk/id/local-authority/30UE,Homelessness,1075,Early Intervention,Cleaning Materials,40019,"Equipment, Furniture & Materia",5023,Sirius Mini Jumbo Toilet Rolls 200m x 90mm (Pack of 12),12/05/2017,0120919,34.44,Revenue,Swiftkleen Ltd,17933,,
Chorley Borough Council,http://statistics.data.gov.uk/id/local-authority/30UE,Homelessness,1075,Early Intervention,Cleaning Materials,40019,"Equipment, Furniture & Materia",5023,"Ramon, Dishcloths 12``x16`` (30cm x 40cm) Pack of 10, bleached white (ANY COLOUR)",12/05/2017,0120919,2.76,Revenue,Swiftkleen Ltd,17933,,
Chorley Borough Council,http://statistics.data.gov.uk/id/local-authority/30UE,Homelessness,1075,Early Intervention,Tools & Equipment - Purchase,40003,"Equipment, Furniture & Materia",5023,"Evans Vanodine Handsan, Alcohol Gel Hand Rub 500ml",12/05/2017,0120919,10.00,Revenue,Swiftkleen Ltd,17933,,
Chorley Borough Council,http://statistics.data.gov.uk/id/local-authority/30UE,Homelessness,1075,Early Intervention,Cleaning Materials,40019,"Equipment, Furniture & Materia",5023,Stand-up Long Life Gel Air Freshener (any fragrance) - Case of 12,12/05/2017,0120919,3.36,Revenue,Swiftkleen Ltd,17933,,
Chorley Borough Council,http://statistics.data.gov.uk/id/local-authority/30UE,Homelessness,1075,Early Intervention,Cleaning Materials,40019,"Equipment, Furniture & Materia",5023,Evans Vanodine Aerosol Air Freshener 400ml - Apple Fragrance,12/05/2017,0120919,8.40,Revenue,Swiftkleen Ltd,17933,,
Chorley Borough Council,http://statistics.data.gov.uk/id/local-authority/30UE,Homelessness,1075,Early Intervention,Cleaning Materials,40019,"Equipment, Furniture & Materia",5023,"HPC Nitrile Disposable Glove, Powder Free, Box of 100 -Medium",12/05/2017,0120919,11.80,Revenue,Swiftkleen Ltd,17933,,
Chorley Borough Council,http://statistics.data.gov.uk/id/local-authority/30UE,Homelessness,1075,Early Intervention,Cleaning Materials,40019,"Equipment, Furniture & Materia",5023,Evans Vanodine Blusyl - Lemon Concentrated Detergent - 5 Litre,12/05/2017,0120919,6.52,Revenue,Swiftkleen Ltd,17933,,
Chorley Borough Council,http://statistics.data.gov.uk/id/local-authority/30UE,Homelessness,1075,Early Intervention,Cleaning Materials,40019,"Equipment, Furniture & Materia",5023,"2-Ply Interfold Towels White, 3200 per case",12/05/2017,0120919,31.36,Revenue,Swiftkleen Ltd,17933,,
Chorley Borough Council,http://statistics.data.gov.uk/id/local-authority/30UE,Homelessness,1075,Early Intervention,Tools & Equipment - Purchase,40003,"Equipment, Furniture & Materia",5023,Electric Kettle - White,12/05/2017,0120919,47.72,Revenue,Swiftkleen Ltd,17933,,
Chorley Borough Council,http://statistics.data.gov.uk/id/local-authority/30UE,Homelessness,1075,Early Intervention,Cleaning Materials,40019,"Equipment, Furniture & Materia",5023,Large Frying Pan - 28cm,12/05/2017,0120919,43.08,Revenue,Swiftkleen Ltd,17933,,
Chorley Borough Council,http://statistics.data.gov.uk/id/local-authority/30UE,Homelessness,1075,Early Intervention,Cleaning Materials,40019,"Equipment, Furniture & Materia",5023,Cereal Bowl,12/05/2017,0120919,13.08,Revenue,Swiftkleen Ltd,17933,,
Chorley Borough Council,http://statistics.data.gov.uk/id/local-authority/30UE,Homelessness,1075,Early Intervention,Cleaning Materials,40019,"Equipment, Furniture & Materia",5023,Coffee/Tea Mug,12/05/2017,0120919,12.00,Revenue,Swiftkleen Ltd,17933,,
Chorley Borough Council,http://statistics.data.gov.uk/id/local-authority/30UE,Homelessness,1075,Early Intervention,Cleaning Materials,40019,"Equipment, Furniture & Materia",5023,Chefs Utility Knife,12/05/2017,0120919,10.50,Revenue,Swiftkleen Ltd,17933,,
Chorley Borough Council,http://statistics.data.gov.uk/id/local-authority/30UE,Homelessness,1075,Early Intervention,Cleaning Materials,40019,"Equipment, Furniture & Materia",5023,Stainless Steel Dessert Spoon - pack of 12,12/05/2017,0120919,4.20,Revenue,Swiftkleen Ltd,17933,,
Chorley Borough Council,http://statistics.data.gov.uk/id/local-authority/30UE,Homelessness,1075,Early Intervention,Cleaning Materials,40019,"Equipment, Furniture & Materia",5023,Stainless Steel Tea Spoons - pack of 12,12/05/2017,0120919,2.56,Revenue,Swiftkleen Ltd,17933,,
Chorley Borough Council,http://statistics.data.gov.uk/id/local-authority/30UE,Homelessness,1075,Early Intervention,Cleaning Materials,40019,"Equipment, Furniture & Materia",5023,Cheese Grater,12/05/2017,0120919,21.96,Revenue,Swiftkleen Ltd,17933,,
Chorley Borough Council,http://statistics.data.gov.uk/id/local-authority/30UE,Homelessness,1075,Early Intervention,Cleaning Materials,40019,"Equipment, Furniture & Materia",5023,Egg Cups - pack of 4,12/05/2017,0120919,8.80,Revenue,Swiftkleen Ltd,17933,,
Chorley Borough Council,http://statistics.data.gov.uk/id/local-authority/30UE,Homelessness,1075,Early Intervention,Cleaning Materials,40019,"Equipment, Furniture & Materia",5023,Stainless Steel Forks - pack of 12,12/05/2017,0120919,5.40,Revenue,Swiftkleen Ltd,17933,,
Chorley Borough Council,http://statistics.data.gov.uk/id/local-authority/30UE,Homelessness,1075,Early Intervention,Cleaning Materials,40019,"Equipment, Furniture & Materia",5023,Stainless Steel Knives - pack of 12,12/05/2017,0120919,7.96,Revenue,Swiftkleen Ltd,17933,,
Chorley Borough Council,http://statistics.data.gov.uk/id/local-authority/30UE,Homelessness,1075,Early Intervention,Cleaning Materials,40019,"Equipment, Furniture & Materia",5023,Metal Tin Opener,12/05/2017,0120919,10.20,Revenue,Swiftkleen Ltd,17933,,
Chorley Borough Council,http://statistics.data.gov.uk/id/local-authority/30UE,Homelessness,1075,Early Intervention,Cleaning Materials,40019,"Equipment, Furniture & Materia",5023,Quilts Single Bed 10.5 Tog,12/05/2017,0120919,121.80,Revenue,Swiftkleen Ltd,17933,,
Chorley Borough Council,http://statistics.data.gov.uk/id/local-authority/30UE,Homelessness,1075,Early Intervention,Cleaning Materials,40019,"Equipment, Furniture & Materia",5023,Pillows Pack of 2 Medium,12/05/2017,0120919,22.98,Revenue,Swiftkleen Ltd,17933,,
Chorley Borough Council,http://statistics.data.gov.uk/id/local-authority/30UE,Economic Development,1096,Business Development & Growth,Cleaning Materials,40019,"Equipment, Furniture & Materia",5023,Please supply janitorial supplies as per e-mail,19/05/2017,0121336,364.98,Revenue,Swiftkleen Ltd,17933,,
Chorley Borough Council,http://statistics.data.gov.uk/id/local-authority/30UE,Unapportionable Central OHeads,1009,Policy & Governance,Cleaning Materials,40019,"Equipment, Furniture & Materia",5023,TB Atlas thick bleach 5ltr QTY 2 boxes @ 1.55 per container,26/05/2017,0121419,6.20,Revenue,Swiftkleen Ltd,17933,,
Chorley Borough Council,http://statistics.data.gov.uk/id/local-authority/30UE,Unapportionable Central OHeads,1009,Policy & Governance,Cleaning Materials,40019,"Equipment, Furniture & Materia",5023,HSC hard surface cleaner 5litre QTY 4   at 5.28 each,26/05/2017,0121419,17.96,Revenue,Swiftkleen Ltd,17933,,
Chorley Borough Council,http://statistics.data.gov.uk/id/local-authority/30UE,Unapportionable Central OHeads,1009,Policy & Governance,Cleaning Materials,40019,"Equipment, Furniture & Materia",5023,EVER Everfresh Evens toilet cleaner apple 5L 3.38 per container QTY 3 boxes,26/05/2017,0121419,20.28,Revenue,Swiftkleen Ltd,17933,,
Chorley Borough Council,http://statistics.data.gov.uk/id/local-authority/30UE,Unapportionable Central OHeads,1009,Policy & Governance,Cleaning Materials,40019,"Equipment, Furniture & Materia",5023,FLASHB Flash with bleach 500ml @ 1.38 each QTY 3,26/05/2017,0121419,3.72,Revenue,Swiftkleen Ltd,17933,,
Chorley Borough Council,http://statistics.data.gov.uk/id/local-authority/30UE,Unapportionable Central OHeads,1009,Policy & Governance,Cleaning Materials,40019,"Equipment, Furniture & Materia",5023,TR320 soft toilet rolls QTY 14 packs @ 36/pack at 5.50 per pack,26/05/2017,0121419,77.00,Revenue,Swiftkleen Ltd,17933,,
Chorley Borough Council,http://statistics.data.gov.uk/id/local-authority/30UE,Unapportionable Central OHeads,1009,Policy & Governance,Cleaning Materials,40019,"Equipment, Furniture & Materia",5023,05SSMJ Mini Jumbo QTY 8 packs  @ 6.65 per pack,26/05/2017,0121419,53.20,Revenue,Swiftkleen Ltd,17933,,
Chorley Borough Council,http://statistics.data.gov.uk/id/local-authority/30UE,Unapportionable Central OHeads,1009,Policy & Governance,Cleaning Materials,40019,"Equipment, Furniture & Materia",5023,"UB3752	 Sirius Centrefeed 2 ply roll 150m Blue 11.70 QTY 6",26/05/2017,0121419,43.20,Revenue,Swiftkleen Ltd,17933,,
Chorley Borough Council,http://statistics.data.gov.uk/id/local-authority/30UE,Unapportionable Central OHeads,1009,Policy & Governance,Cleaning Materials,40019,"Equipment, Furniture & Materia",5023,Paper towels 3600 green 1 fold QTY 10 boxes 10.10 per box,26/05/2017,0121419,101.00,Revenue,Swiftkleen Ltd,17933,,
Chorley Borough Council,http://statistics.data.gov.uk/id/local-authority/30UE,Unapportionable Central OHeads,1009,Policy & Governance,Cleaning Materials,40019,"Equipment, Furniture & Materia",5023,39BBL Black bin liners QTY 5 boxes 11.70 per box,26/05/2017,0121419,58.50,Revenue,Swiftkleen Ltd,17933,,
Chorley Borough Council,http://statistics.data.gov.uk/id/local-authority/30UE,Unapportionable Central OHeads,1009,Policy & Governance,Cleaning Materials,40019,"Equipment, Furniture & Materia",5023,SAF Stand up air freshener 12 per case and 3.36 per case QTY 1 case,26/05/2017,0121419,3.36,Revenue,Swiftkleen Ltd,17933,,
Chorley Borough Council,http://statistics.data.gov.uk/id/local-authority/30UE,Unapportionable Central OHeads,1009,Policy & Governance,Cleaning Materials,40019,"Equipment, Furniture & Materia",5023,CAF Spray Air fresh QTY 10 @0.70 each,26/05/2017,0121419,6.00,Revenue,Swiftkleen Ltd,17933,,
Chorley Borough Council,http://statistics.data.gov.uk/id/local-authority/30UE,Unapportionable Central OHeads,1009,Policy & Governance,Cleaning Materials,40019,"Equipment, Furniture & Materia",5023,DCS Blue Dishcloths QTY 10 packs 10/pack @ 1.92 each 11.52,26/05/2017,0121419,19.90,Revenue,Swiftkleen Ltd,17933,,
Chorley Borough Council,http://statistics.data.gov.uk/id/local-authority/30UE,Unapportionable Central OHeads,1009,Policy & Governance,Cleaning Materials,40019,"Equipment, Furniture & Materia",5023,DCS Green Dishcloths QTY 10 packs 10/pack @ 1.92 each 11.52,26/05/2017,0121419,19.90,Revenue,Swiftkleen Ltd,17933,,
Chorley Borough Council,http://statistics.data.gov.uk/id/local-authority/30UE,Unapportionable Central OHeads,1009,Policy & Governance,Cleaning Materials,40019,"Equipment, Furniture & Materia",5023,DCS Yellow Dishcloths QTY 10 packs 10/pack @ 1.92 each 11.52,26/05/2017,0121419,19.90,Revenue,Swiftkleen Ltd,17933,,
Chorley Borough Council,http://statistics.data.gov.uk/id/local-authority/30UE,Unapportionable Central OHeads,1009,Policy & Governance,Cleaning Materials,40019,"Equipment, Furniture & Materia",5023,DCS Red Dishcloths QTY 10 packs 10/pack @ 1.92 each 11.52,26/05/2017,0121419,19.90,Revenue,Swiftkleen Ltd,17933,,
Chorley Borough Council,http://statistics.data.gov.uk/id/local-authority/30UE,Unapportionable Central OHeads,1009,Policy & Governance,Cleaning Materials,40019,"Equipment, Furniture & Materia",5023,DUST Yellow Duster pack of 10 @ 1.10 QTY 5 packs,26/05/2017,0121419,5.50,Revenue,Swiftkleen Ltd,17933,,
Chorley Borough Council,http://statistics.data.gov.uk/id/local-authority/30UE,Unapportionable Central OHeads,1009,Policy & Governance,Cleaning Materials,40019,"Equipment, Furniture & Materia",5023,SCOP pack of 10 scouring pads 1.57 per pack QTY 7 packs,26/05/2017,0121419,7.70,Revenue,Swiftkleen Ltd,17933,,
Chorley Borough Council,http://statistics.data.gov.uk/id/local-authority/30UE,Unapportionable Central OHeads,1009,Policy & Governance,Cleaning Materials,40019,"Equipment, Furniture & Materia",5023,EXCEL 250 Twine Mop Blue 1.61 each QTY 10,26/05/2017,0121419,13.70,Revenue,Swiftkleen Ltd,17933,,
Chorley Borough Council,http://statistics.data.gov.uk/id/local-authority/30UE,Unapportionable Central OHeads,1009,Policy & Governance,Cleaning Materials,40019,"Equipment, Furniture & Materia",5023,NITPF Nitrile gloves size M 47.12 per case QTY 2,26/05/2017,0121419,59.00,Revenue,Swiftkleen Ltd,17933,,
Chorley Borough Council,http://statistics.data.gov.uk/id/local-authority/30UE,Unapportionable Central OHeads,1009,Policy & Governance,Cleaning Materials,40019,"Equipment, Furniture & Materia",5023,LADYCOMBO 9 litre Kentucy mop bucket and wringer  QTY 4  One of each colour,26/05/2017,0121419,73.44,Revenue,Swiftkleen Ltd,17933,,
Chorley Borough Council,http://statistics.data.gov.uk/id/local-authority/30UE,Democratic Represent and  Mgnt,1007,Policy & Governance,Tools & Equipment - Maintenance,40005,"Equipment, Furniture & Materia",5023,Gold Service of Lancastrian PA system for the period of 15/01/17 - 14/01/18,10/05/2017,0120858,798.00,Revenue,T G Baker (sound) LTD,22364,,
Chorley Borough Council,http://statistics.data.gov.uk/id/local-authority/30UE,Democratic Represent and  Mgnt,1007,Policy & Governance,Publicity - Advertising,40157,Miscellaneous Expenses,5034,Campaign for distribution of Astley Hall 2017 leaflets.,19/05/2017,0121339,300.00,Revenue,Take One Media,21807,,
Chorley Borough Council,http://statistics.data.gov.uk/id/local-authority/30UE,Business Support,1095,Business Development & Growth,Grants To Other Organisations,40127,Grants and Subscriptions,5031,grant,17/05/2017,0120963,"2,250.00",Revenue,Talking Heads,76709,,
Chorley Borough Council,http://statistics.data.gov.uk/id/local-authority/30UE,Unapportionable Central OHeads,1009,Policy & Governance,Tools & Equipment - Purchase,40003,"Equipment, Furniture & Materia",5023,100 x A5 programmes for the Mayor`s Civic Reception,19/05/2017,0121342,96.20,Revenue,The Print Quarter,17987,,
Chorley Borough Council,http://statistics.data.gov.uk/id/local-authority/30UE,Unapportionable Central OHeads,1009,Policy & Governance,Tools & Equipment - Purchase,40003,"Equipment, Furniture & Materia",5023,A1 table plan on foam board for the Mayor`s Civic Reception,19/05/2017,0121342,39.00,Revenue,The Print Quarter,17987,,
Chorley Borough Council,http://statistics.data.gov.uk/id/local-authority/30UE,Democratic Represent and  Mgnt,1007,Policy & Governance,Processional Routes,40177,Miscellaneous Expenses,5034,250 Order of Service booklets for the Mayor`s Civic Sunday.,19/05/2017,0121342,243.20,Revenue,The Print Quarter,17987,,
Chorley Borough Council,http://statistics.data.gov.uk/id/local-authority/30UE,Democratic Represent and  Mgnt,1007,Policy & Governance,Exhibitions & Special Events,40158,Miscellaneous Expenses,5034,Fee for Museums at Night 20th May 2017 Theatre by Numbers,31/05/2017,0121457,525.90,Revenue,Theatre by Numbers,69758,,
Chorley Borough Council,http://statistics.data.gov.uk/id/local-authority/30UE,Service Management & Support,1009,Customer & Digital,Grounds Maintenance Contractor,20043,Grounds Maintenance Costs,5013,"Works to be carried out Union St, Chorley",05/05/2017,0120797,420.00,Revenue,Treescape North West Ltd,17688,,
Chorley Borough Council,http://statistics.data.gov.uk/id/local-authority/30UE,Service Management & Support,1009,Customer & Digital,Grounds Maintenance Contractor,20043,Grounds Maintenance Costs,5013,"Pruning works to be carried out Yarrow Depot, side of horse stables Bolton Road",05/05/2017,0120798,620.00,Revenue,Treescape North West Ltd,17688,,
Chorley Borough Council,http://statistics.data.gov.uk/id/local-authority/30UE,Business Support,1095,Business Development & Growth,External Contractor,40198,Miscellaneous Expenses,5034,to provide Winter Maintenance Programme 2016/2017 at Market Walk Shopping Centre as per quote WP16/17/auth/q/,03/05/2017,0120623,"1,765.00",Revenue,Trevelyan Hall Ltd t/a Litterboss,71709,,
Chorley Borough Council,http://statistics.data.gov.uk/id/local-authority/30UE,Business Support,1095,Business Development & Growth,Miscellaneous Expenses,40200,Miscellaneous Expenses,5034,"Fairpoint, Fairclough House, Chorley - Building and M&E",03/05/2017,0120715,"8,550.00",Revenue,Trilogie CRE,76618,,
Chorley Borough Council,http://statistics.data.gov.uk/id/local-authority/30UE,Unapportionable Central OHeads,1009,Policy & Governance,Television Licence,40170,Miscellaneous Expenses,5034,Television Licence,26/05/2017,0121475,147.00,Revenue,TV Licensing,18105,,
Chorley Borough Council,http://statistics.data.gov.uk/id/local-authority/30UE,Unapportionable Central OHeads,1009,Policy & Governance,Television Licence,40170,Miscellaneous Expenses,5034,Television Licence,26/05/2017,0121475,147.00,Revenue,TV Licensing,18105,,
Chorley Borough Council,http://statistics.data.gov.uk/id/local-authority/30UE,Service Management & Support,1009,Customer & Digital,Petrol,30005,Direct Transport Costs,5016,Mar-17,26/05/2017,0120089,349.79,Revenue,Uk Fuels Ltd,57996,,
Chorley Borough Council,http://statistics.data.gov.uk/id/local-authority/30UE,Service Management & Support,1009,Customer & Digital,Petrol,30005,Direct Transport Costs,5016,Apr-17,26/05/2017,0120979,716.62,Revenue,Uk Fuels Ltd,57996,,
Chorley Borough Council,http://statistics.data.gov.uk/id/local-authority/30UE,Unapportionable Central OHeads,1009,Policy & Governance,Miscellaneous Expenses,40200,Miscellaneous Expenses,5034,level 1-5,10/05/2017,0120980,"1,528.49",Revenue,UK Healthcare (BDHSC),17241,,
Chorley Borough Council,http://statistics.data.gov.uk/id/local-authority/30UE,Control Accounts,Control,Policy & Governance,General Balances,00100,Balance Sheet,Balance,top ups,10/05/2017,0120980,519.19,Revenue,UK Healthcare (BDHSC),17241,,
Chorley Borough Council,http://statistics.data.gov.uk/id/local-authority/30UE,Unapportionable Central OHeads,1009,Customer & Digital,Service Fees,40056,Services,5027,Daily Hybrid mail & Annual Billing,05/05/2017,0120829,929.95,Revenue,UKMAIL Ltd (Mail),57758,,
Chorley Borough Council,http://statistics.data.gov.uk/id/local-authority/30UE,Unapportionable Central OHeads,1009,Customer & Digital,Service Fees,40056,Services,5027,Daily Hybrid mail & Annual Billing,05/05/2017,0120841,787.40,Revenue,UKMAIL Ltd (Mail),57758,,
Chorley Borough Council,http://statistics.data.gov.uk/id/local-authority/30UE,Unapportionable Central OHeads,1009,Customer & Digital,Service Fees,40056,Services,5027,Daily Hybrid mail & Annual Billing,24/05/2017,0120842,"5,842.95",Revenue,UKMAIL Ltd (Mail),57758,,
Chorley Borough Council,http://statistics.data.gov.uk/id/local-authority/30UE,Unapportionable Central OHeads,1009,Customer & Digital,Service Fees,40056,Services,5027,Daily Hybrid mail & Annual Billing,05/05/2017,0120843,"1,273.04",Revenue,UKMAIL Ltd (Mail),57758,,
Chorley Borough Council,http://statistics.data.gov.uk/id/local-authority/30UE,Unapportionable Central OHeads,1009,Customer & Digital,Service Fees,40056,Services,5027,Daily Hybrid mail & Annual Billing,31/05/2017,0121373,790.61,Revenue,UKMAIL Ltd (Mail),57758,,
Chorley Borough Council,http://statistics.data.gov.uk/id/local-authority/30UE,Unapportionable Central OHeads,1009,Customer & Digital,Service Fees,40056,Services,5027,Daily Hybrid mail & Annual Billing,31/05/2017,0121374,"1,498.48",Revenue,UKMAIL Ltd (Mail),57758,,
Chorley Borough Council,http://statistics.data.gov.uk/id/local-authority/30UE,Unapportionable Central OHeads,1009,Customer & Digital,Service Fees,40056,Services,5027,Daily Hybrid mail & Annual Billing,31/05/2017,0121375,520.82,Revenue,UKMAIL Ltd (Mail),57758,,
Chorley Borough Council,http://statistics.data.gov.uk/id/local-authority/30UE,Unapportionable Central OHeads,1009,Customer & Digital,Service Fees,40056,Services,5027,Daily Hybrid mail & Annual Billing,31/05/2017,0121376,902.34,Revenue,UKMAIL Ltd (Mail),57758,,
Chorley Borough Council,http://statistics.data.gov.uk/id/local-authority/30UE,Business Support,1095,Business Development & Growth,Miscellaneous Expenses,40200,Miscellaneous Expenses,5034,For provision of business loan services 2016/17,17/05/2017,0121069,"1,230.00",Revenue,Unify Credit Union Ltd,55509,,
Chorley Borough Council,http://statistics.data.gov.uk/id/local-authority/30UE,Business Support,1095,Business Development & Growth,Miscellaneous Expenses,40200,Miscellaneous Expenses,5034,For provision of business loan services 2016/17,17/05/2017,0121070,500.00,Revenue,Unify Credit Union Ltd,55509,,
Chorley Borough Council,http://statistics.data.gov.uk/id/local-authority/30UE,Control Accounts,Control,Policy & Governance,General Balances,00100,Balance Sheet,Balance,sal ded,17/05/2017,0121295,"1,744.15",Revenue,Unify Credit Union Ltd,55509,,
Chorley Borough Council,http://statistics.data.gov.uk/id/local-authority/30UE,Capital,Capital,Early Intervention,Grants,03002,Capital Expenditure,Capital,ADDRESS REDACTED,26/05/2017,0121473,"3,180.00",Capital,UPS Building and Maintenance Ltd,76235,,
Chorley Borough Council,http://statistics.data.gov.uk/id/local-authority/30UE,Planning Policy,1092,Business Development & Growth,Professional Fees,40063,Services,5027,Planning Support from Urban Vision for period April - July 2017,19/05/2017,0121341,"2,663.14",Revenue,Urban Vision Partnership Ltd,21181,,
Chorley Borough Council,http://statistics.data.gov.uk/id/local-authority/30UE,Development Control,1091,Customer & Digital,Professional Fees,40063,Services,5027,credited,18/05/2017,0121377,"5,929.56",Revenue,Urban Vision Partnership Ltd,21181,,
Chorley Borough Council,http://statistics.data.gov.uk/id/local-authority/30UE,Development Control,1091,Customer & Digital,Professional Fees,40063,Services,5027,creduited,18/05/2017,0121378,696.63,Revenue,Urban Vision Partnership Ltd,21181,,
Chorley Borough Council,http://statistics.data.gov.uk/id/local-authority/30UE,Central Support Services,1009,Business Development & Growth,Consultants` Fees,40077,Services,5027,Asset Valuations for Chorley Borough Council as per your Terms of Engagement reference 1626784,24/05/2017,0121260,"3,000.00",Revenue,Valuation Office Agency,17561,,
Chorley Borough Council,http://statistics.data.gov.uk/id/local-authority/30UE,Business Support,1095,Business Development & Growth,Other Fees,40212,Miscellaneous Expenses,5034,Payment of DVS fees in connection with Strategic Land Exchange.  Ref: 1555117.,24/05/2017,0121287,"6,984.80",Revenue,Valuation Office Agency,17561,,
Chorley Borough Council,http://statistics.data.gov.uk/id/local-authority/30UE,Central Support Services,1009,Business Development & Growth,Consultants` Fees,40077,Services,5027,Asset Valuations for Chorley Borough Council as per your Terms of Engagement reference 1626784,24/05/2017,0121288,"1,000.00",Revenue,Valuation Office Agency,17561,,
Chorley Borough Council,http://statistics.data.gov.uk/id/local-authority/30UE,Central Support Services,1009,Business Development & Growth,Consultants` Fees,40077,Services,5027,Asset Valuations for Chorley Borough Council as per your Terms of Engagement reference 1626784,26/05/2017,0121489,"4,000.00",Revenue,Valuation Office Agency,17561,,
Chorley Borough Council,http://statistics.data.gov.uk/id/local-authority/30UE,Corporate Management,1008,Customer & Digital,Unitary Payment(S),50009,Private Contractors,5042,Provision of household waste and recycling collection and ancillary services for 2016/17.,19/05/2017,0121321,"287,044.24",Revenue,Veolia ES (UK) Ltd,20748,,
Chorley Borough Council,http://statistics.data.gov.uk/id/local-authority/30UE,Central Support Services,1009,Customer & Digital,Internet Charges,40104,Communication and Computing,5028,May-17,26/05/2017,0121479,"1,607.28",Revenue,Virgin Media Payments Ltd,17632,,
Chorley Borough Council,http://statistics.data.gov.uk/id/local-authority/30UE,Corporate Management,1008,Policy & Governance,Car Leasing Payment,14100,Direct Employee Expenses,5001,Car Lease,12/05/2017,0120669,"3,664.93",Revenue,VWFS UK Ltd T/A Volkswagen Group Leasing,56010,,
Chorley Borough Council,http://statistics.data.gov.uk/id/local-authority/30UE,Corporate Management,1008,Policy & Governance,Car Leasing Payment,14100,Direct Employee Expenses,5001,Car Lease,12/05/2017,0120669,318.23,Revenue,VWFS UK Ltd T/A Volkswagen Group Leasing,56010,,
Chorley Borough Council,http://statistics.data.gov.uk/id/local-authority/30UE,Control Accounts,Control,Policy & Governance,Manual Control Account,00001,Balance Sheet,Balance,Car Lease,12/05/2017,0120669,-318.23,Revenue,VWFS UK Ltd T/A Volkswagen Group Leasing,56010,,
Chorley Borough Council,http://statistics.data.gov.uk/id/local-authority/30UE,Control Accounts,Control,Policy & Governance,Manual Control Account,00001,Balance Sheet,Balance,REFUND SENT IN ERROR,17/05/2017,CRREF62,"2,561.78",Revenue,VWFS UK Ltd T/A Volkswagen Group Leasing,56010,,
Chorley Borough Council,http://statistics.data.gov.uk/id/local-authority/30UE,Corporate Management,1008,Business Development & Growth,Water - Metered Supplies,20022,Water Services,5009,toilets market place,10/05/2017,0120969,"1,931.31",Revenue,Water-plus,17926,,
Chorley Borough Council,http://statistics.data.gov.uk/id/local-authority/30UE,Corporate Management,1008,Business Development & Growth,Water - Metered Supplies,20022,Water Services,5009,market place toilets,17/05/2017,0121108,"2,037.79",Revenue,Water-plus,17926,,
Chorley Borough Council,http://statistics.data.gov.uk/id/local-authority/30UE,Unapportionable Central OHeads,1009,Business Development & Growth,Water - Metered Supplies,20022,Water Services,5009,byron street,17/05/2017,0121109,"1,360.27",Revenue,Water-plus,17926,,
Chorley Borough Council,http://statistics.data.gov.uk/id/local-authority/30UE,Community Development,1097,Business Development & Growth,Water - Metered Supplies,20022,Water Services,5009,37 market walk,17/05/2017,0121112,257.93,Revenue,Water-plus,17926,,
Chorley Borough Council,http://statistics.data.gov.uk/id/local-authority/30UE,Central Support Services,1009,Business Development & Growth,Water - Unmetered Supply,20023,Water Services,5009,eaves lane,17/05/2017,0121207,854.35,Revenue,Water-plus,17926,,
Chorley Borough Council,http://statistics.data.gov.uk/id/local-authority/30UE,Service Management & Support,1009,Customer & Digital,Diesel/Derv,30007,Direct Transport Costs,5016,"Supply of 4000 litres gas oil delivered to Chorley Council`s Bengal St Depot, PR7 1SA.",17/05/2017,0120996,"1,846.00",Revenue,Watsons Fuels,22184,,
Chorley Borough Council,http://statistics.data.gov.uk/id/local-authority/30UE,Service Management & Support,1009,Customer & Digital,Diesel/Derv,30007,Direct Transport Costs,5016,"Supply of 7000 litres road diesel delivered to Chorley Council`s Bengal St Depot, PR7 1SA.",17/05/2017,0121060,"6,471.50",Revenue,Watsons Fuels,22184,,
Chorley Borough Council,http://statistics.data.gov.uk/id/local-authority/30UE,Service Management & Support,1009,Customer & Digital,Vehicle Maintenance,30045,Direct Transport Costs,5016,Callout to recover Case tractor flail stuck in ditch at Holker Lane as requested as on invoice number 38929,03/05/2017,0120730,350.00,Revenue,Weldbank Garage,17334,,
Chorley Borough Council,http://statistics.data.gov.uk/id/local-authority/30UE,Capital,Capital,Business Development & Growth,Other Capital Related Fees,03024,Capital Expenditure,Capital,"Balance of professional fees from original Westlakes fee agreement 2,250 Additional Site Visits 2,500 (whole project) Additional",12/05/2017,0121015,250.00,Capital,Westlakes Engineering Ltd,74337,,
Chorley Borough Council,http://statistics.data.gov.uk/id/local-authority/30UE,Capital,Capital,Business Development & Growth,Other Capital Related Fees,03024,Capital Expenditure,Capital,"Balance of professional fees from original Westlakes fee agreement 2,250 Additional Site Visits 2,500 (whole project) Additional",12/05/2017,0121061,500.00,Capital,Westlakes Engineering Ltd,74337,,
Chorley Borough Council,http://statistics.data.gov.uk/id/local-authority/30UE,Unapportionable Central OHeads,1009,Chief Executive,Postages,40082,Communication and Computing,5028,"Mail collection for Town Hall and Union Street, April 2017 - March 2018",12/05/2017,0121009,672.18,Revenue,Whistl North Limited,67256,,
Chorley Borough Council,http://statistics.data.gov.uk/id/local-authority/30UE,Unapportionable Central OHeads,1009,Chief Executive,Postages,40082,Communication and Computing,5028,"Mail collection for Town Hall and Union Street, April 2017 - March 2018",26/05/2017,0121063,261.76,Revenue,Whistl North Limited,67256,,
Chorley Borough Council,http://statistics.data.gov.uk/id/local-authority/30UE,Unapportionable Central OHeads,1009,Customer & Digital,Publications,40054,"Printing, Stationery & General",5026,CCH VAT Standard Subscription 20.05.17 to 19.05.18,17/05/2017,0121010,456.19,Revenue,Wolters Kluwer (UK) Ltd,16273,,
Chorley Borough Council,http://statistics.data.gov.uk/id/local-authority/30UE,Service Management & Support,1009,Customer & Digital,Vehicle Maintenance,30045,Direct Transport Costs,5016,Carryout pre MOT inspection on T481MNB. Major welding and mechanical repairs carried out as per failure sheet. ,17/05/2017,0121059,"1,518.73",Revenue,Wrekamendid Services Ltd,21188,,
Chorley Borough Council,http://statistics.data.gov.uk/id/local-authority/30UE,Service Management & Support,1009,Customer & Digital,Vehicle Maintenance,30045,Direct Transport Costs,5016,mot,17/05/2017,0121059,30.00,Revenue,Wrekamendid Services Ltd,21188,,
